Workbook

Sheet Instructions
F1: Travel Expense Statement - Instructions
A2: This form should be completed by any agency that is not using the Concur Travel and Expense Management System. Use the Per Diem Calculator Tool (included with this form) to determine the total meal allowance due to the traveler (if applicable).
A4: Section 1: Expense Submitter & Preparer Information
A6: Agency & Traveler Name | C6: Enter the expense submitter's agency name and in the appropriate field enter the Traveler's name
A8: Employee ID# | C8: Enter expense submitter's employee ID #
A10: Home Address | C10: Enter the expense submitter's street address
A12: City, State, Zip | C12: Enter the expense submitter's home city, state, and zip
A14: Office Phone: | C14: Enter expense submitter's phone number
A16: Email Address: | C16: Enter expense submitter's email address
A18: Type of Travel: | C18: Select dropdown box for: In State, Out of State, or International Travel
A20: Travel To Date: | C20: Enter first date of the trip
A22: Travel From Date: | C22: Enter last date of trip
A24: Departure & Return Time: | C24: Enter the time you left on the first day of your trip and the time you returned on the last day of your trip
A25: Section 2: Record of Expenses | C25: This section summarizes the Travel Expenses from page 2, the Mileage Expenses from page 3, and the M&IE Per diem amount calculated with the Per diem Calculator Tool on page 4.
A27: Date | C27: Write out the date in the MM/DD/YY format
A29: Per Diem | C29: For the First and Last Day, check the box in the per diem field (Only 75% of Per Diem Eligible for Reimbursement on the First and Last Day
C30: of an authorized trip. Also, note that when a meal is provided the eligible reimbursable per diem is reduced by the amount allocated for that
C31: particular meal at the 100% rate -- this is a State Policy).
A33: Total Expenses | C33: The sum of the expenses in the Amount column will total here
A34: Travel Advance | C34: If the expense submitter obtained a travel advance prior to the trip, enter the amount of the advance
A36: Due TO/FROM the Expense Submitter | C36: If the expenses were greater than the total of the advances, the net amount owed TO the expense submitter will total here. If the advances were greater than the expense amount, the net amount due FROM the expense submitter will total here. If the expense submitter owes the State money, please attach a personal check to the expense report
A38: Section 3: Certification and Attestation
A40: Traveler Signature | C40: Enter the name of the traveler
A42: Approver Signatures | C42: Note: The individual/s below who approve the Travel and Expense Statement are certifying the following: * Appropriateness of the expenditure and reasonableness of the amount * Availability of funds * Compliance with Statewide Travel Regulations * Completeness of documentation and accuracy
A45: Page 2 - Itemized Travel Expenses
A47: Purpose of Trip/Event | C47: Clearly state the business purpose of the trip or event; include the conference name if applicable
A49: Record of Travel Expenses | C49: Itemize all expenses by date and type. An original receipt is required for any item $25 or greater. Original receipts are also required for all lodging and airline expenses, regardless of amount.
A51: Common Carrier, Etc… | C51: Enter amount of any commercial transportation used during a trip (Receipts are required) Other expenses charged to this account include parking, taxes, and tolls
A53: Miscellaneous Expenses | C53: Use this space to include expenses that do not apply to any of the above categories. List the date and provide a description of the expense. Attach an additional sheet if necessary.
A56: Page 3 - Personal Vehicle Mileage
A58: Traveler Name | C58: Enter the name of the employee: last name, first name, middle initial
A60: Date | C60: Enter date of the traveler's departure
A62: Origin | C62: Enter location where the trip began
A64: Destination | C64: Enter final destination of business trip
A66: Business Miles | C66: Enter total business miles for the travel
A68: Commute Miles | C68: Enter total commute miles for the travel (Miles from home to work location)
A70: Personal Miles | C70: Enter any personal miles that occurred during the travel
A72: State Use Miles | C72: State use miles will automatically calculate (deducting any commute miles and personal miles)
A73: Mileage Rate | C73: Verify that correct mileage rate populated. Total State use miles will automatically populate in Page 1 of the expense report.
A75: Motor Pool | C75: Mark the box if motor pool vehicle was used
A77: Shared Transportation | C77: Enter names of individuals that rode with the traveler

Sheet Page1 - Expense Report
H1: INTERNATIONAL
A2: Section 1: Expense Submitter and Personal Information
A4: Agency: | D4: Savannah State University | J4: Type of Travel | L4: International | U4: In State
A5: Traveler's Name: | J5: From Date: MM/DD/YY | U5: Out of State
A6: Employee ID #: | J6: To Date: MM/DD/YY | U6: International
A7: Home Address: | J7: Departure Time:
A8: City, State, Zip: | J8: Return Time:
A9: Office Phone: | J9: Travel Destination: | L9: Please-Select ( ALL )
A10: Email Address: | J10: If Other, Specify
A13: Section 2: Record of Expenses
A14: Daily Per Diem: | B14: =VLOOKUP(L9,Table3[#All],8,FALSE) -> 0 | E14: In-State High Cost Areas = $36 & Low Cost Areas = $28; For Out-of-State Per Diems, refer to www.gsa.gov
A15: þ First & Last Day, Please Check Box in Per Diem Column | I15: þ For Provided Meals, Please Check Box
A16: Date: (Ex: 10/01/2012) | E16: Per Diem | G16: Location | I16: Breakfast | J16: Lunch | K16: Dinner | L16: Lodging | M16: Amount | O16: Per Diem | P16: Is Blank A17 | Q16: B | R16: L | W16: D
A17: =IF(ISBLANK(L5),"",SUM(L5)) ->  | E17: =IF(COUNTBLANK(A17),"",IF(O17=TRUE,$B$14*0.75,$B$14)) ->  | G17: =IF(COUNTBLANK(A17)=1,"",IF(ISBLANK($B$14),"",IF($B$14=0,"",$L$9))) ->  | I17: =IF($E$17="","",IF(Q17=TRUE,SUM(VLOOKUP($E$17,Table2[#All],2,TRUE)*-1),"")) ->  | J17: =IF($E$17="","",IF(R17=TRUE,SUM(VLOOKUP($E$17,Table2[#All],3,TRUE)*-1),"")) ->  | K17: =IF($E$17="","",IF(W17=TRUE,SUM(VLOOKUP($E$17,Table2[#All],4,TRUE)*-1),"")) ->  | M17: =IF(COUNTBLANK(E17),"",E17+SUM(I17:K17)+L17) ->  | O17: FALSE | P17: =ISBLANK(A17) -> FALSE | Q17: FALSE | R17: FALSE | W17: FALSE
A18: =IF(A17<$L$6,A17+1,"") ->  | E18: =IF(COUNTBLANK(A18),"",IF(O18=TRUE,$B$14*0.75,$B$14)) ->  | G18: =IF(COUNTBLANK(A18)=1,"",IF(ISBLANK($B$14),"",IF($B$14=0,"",$L$9))) ->  | I18: =IF($E$17="","",IF(Q18=TRUE,SUM(VLOOKUP($E$18,Table2[#All],2,TRUE)*-1),"")) ->  | J18: =IF($E$17="","",IF(R18=TRUE,SUM(VLOOKUP($E$18,Table2[#All],3,TRUE)*-1),"")) ->  | K18: =IF($E$17="","",IF(W18=TRUE,SUM(VLOOKUP($E$18,Table2[#All],4,TRUE)*-1),"")) ->  | M18: =IF(COUNTBLANK(E18),"",E18+SUM(I18:K18)+L18) ->  | O18: FALSE | P18: =ISBLANK(A18) -> FALSE | Q18: FALSE | R18: FALSE | W18: FALSE
A19: =IF(A18<$L$6,A18+1,"") ->  | I19: =IF($E$17="","",IF(Q19=TRUE,SUM(VLOOKUP($E$19,Table2[#All],2,TRUE)*-1),"")) ->  | J19: =IF($E$17="","",IF(R19=TRUE,SUM(VLOOKUP($E$19,Table2[#All],3,TRUE)*-1),"")) ->  | K19: =IF($E$17="","",IF(W19=TRUE,SUM(VLOOKUP($E$19,Table2[#All],4,TRUE)*-1),"")) ->  | O19: FALSE | P19: FALSE | Q19: FALSE | R19: FALSE | W19: FALSE
I20: =IF($E$17="","",IF(Q20=TRUE,SUM(VLOOKUP($E$20,Table2[#All],2,TRUE)*-1),"")) ->  | J20: =IF($E$17="","",IF(R20=TRUE,SUM(VLOOKUP($E$20,Table2[#All],3,TRUE)*-1),"")) ->  | K20: =IF($E$17="","",IF(W20=TRUE,SUM(VLOOKUP($E$20,Table2[#All],4,TRUE)*-1),"")) ->  | O20: FALSE | P20: FALSE | Q20: FALSE | R20: FALSE | W20: FALSE
I21: =IF($E$17="","",IF(Q21=TRUE,SUM(VLOOKUP($E$21,Table2[#All],2,TRUE)*-1),"")) ->  | J21: =IF($E$17="","",IF(R21=TRUE,SUM(VLOOKUP($E$21,Table2[#All],3,TRUE)*-1),"")) ->  | K21: =IF($E$17="","",IF(W21=TRUE,SUM(VLOOKUP($E$21,Table2[#All],4,TRUE)*-1),"")) ->  | O21: FALSE | P21: FALSE | Q21: FALSE | R21: FALSE | W21: FALSE
I22: =IF($E$17="","",IF(Q22=TRUE,SUM(VLOOKUP($E$22,Table2[#All],2,TRUE)*-1),"")) ->  | J22: =IF($E$17="","",IF(R22=TRUE,SUM(VLOOKUP($E$22,Table2[#All],3,TRUE)*-1),"")) ->  | K22: =IF($E$17="","",IF(W22=TRUE,SUM(VLOOKUP($E$22,Table2[#All],4,TRUE)*-1),"")) ->  | O22: FALSE | P22: FALSE | Q22: FALSE | R22: FALSE | W22: FALSE
I23: =IF($E$17="","",IF(Q23=TRUE,SUM(VLOOKUP($E$23,Table2[#All],2,TRUE)*-1),"")) ->  | J23: =IF($E$17="","",IF(R23=TRUE,SUM(VLOOKUP($E$23,Table2[#All],3,TRUE)*-1),"")) ->  | K23: =IF($E$17="","",IF(W23=TRUE,SUM(VLOOKUP($E$23,Table2[#All],4,TRUE)*-1),"")) ->  | O23: FALSE | P23: FALSE | Q23: FALSE | R23: FALSE | W23: FALSE
I24: =IF($E$17="","",IF(Q24=TRUE,SUM(VLOOKUP($E$24,Table2[#All],2,TRUE)*-1),"")) ->  | J24: =IF($E$17="","",IF(R24=TRUE,SUM(VLOOKUP($E$24,Table2[#All],3,TRUE)*-1),"")) ->  | K24: =IF($E$17="","",IF(W24=TRUE,SUM(VLOOKUP($E$24,Table2[#All],4,TRUE)*-1),"")) ->  | O24: FALSE | P24: FALSE | Q24: FALSE | R24: FALSE | W24: FALSE
I25: =IF($E$17="","",IF(Q25=TRUE,SUM(VLOOKUP($E$25,Table2[#All],2,TRUE)*-1),"")) ->  | J25: =IF($E$17="","",IF(R25=TRUE,SUM(VLOOKUP($E$25,Table2[#All],3,TRUE)*-1),"")) ->  | K25: =IF($E$17="","",IF(W25=TRUE,SUM(VLOOKUP($E$25,Table2[#All],4,TRUE)*-1),"")) ->  | O25: FALSE | P25: FALSE | Q25: FALSE | R25: FALSE | W25: FALSE
I26: =IF($E$17="","",IF(Q26=TRUE,SUM(VLOOKUP($E$26,Table2[#All],2,TRUE)*-1),"")) ->  | J26: =IF($E$17="","",IF(R26=TRUE,SUM(VLOOKUP($E$26,Table2[#All],3,TRUE)*-1),"")) ->  | K26: =IF($E$17="","",IF(W26=TRUE,SUM(VLOOKUP($E$26,Table2[#All],4,TRUE)*-1),"")) ->  | O26: FALSE | P26: FALSE | Q26: FALSE | R26: FALSE | W26: FALSE
I27: =IF($E$17="","",IF(Q27=TRUE,SUM(VLOOKUP($E$27,Table2[#All],2,TRUE)*-1),"")) ->  | J27: =IF($E$17="","",IF(R27=TRUE,SUM(VLOOKUP($E$27,Table2[#All],3,TRUE)*-1),"")) ->  | K27: =IF($E$17="","",IF(W27=TRUE,SUM(VLOOKUP($E$27,Table2[#All],4,TRUE)*-1),"")) ->  | O27: FALSE | P27: FALSE | Q27: FALSE | R27: FALSE | W27: FALSE
A28: Explain Any Unusual Amounts for Subsistence: | H28: Amount by Column | I28: =SUM(I17:I27) -> 0 | J28: =SUM(J17:J27) -> 0 | K28: 0 | L28: 0
L29: TOTAL | M29: =SUM(M17:M28) -> 0
A31: State Use Miles: Over 50 Miles Within 50 Mile Radius | H31: Rate | I31: =IF(O31=TRUE,0.235,IF(P31=TRUE,0.56,"")) ->  | J31: Total Miles | K31: ='Page 2 - Travel Expenses'!I23 -> 0 | M31: =IF(COUNTBLANK(I31),"",I31*K31) ->  | O31: FALSE | P31: FALSE
A32: Common Carrier / Limousine (Explain in Section on Page 2) | M32: ='Page 2 - Travel Expenses'!I40 -> 0
A33: Miscellaneous Expenses (Explain in Section on Page 2) | M33: ='Page 2 - Travel Expenses'!I47 -> 0
A34: TOTAL TRAVEL EXPENSE | M34: =SUM(M29:M33) -> 0
A35: Travel Advance V#: | F35: <==Enter Advance #, if applicable
A36: Due TO/FROM Expense Submitter: | M36: =M34-M35 -> 0
A38: Section 3: Certification and Attestation
A39: I do solemnly swear, under criminal penalty of a felony for false statements subject to punishment by fine of not more than $1,000 or by imprisonment of not less than one nor more than five years, that the above statements are true and I have incurred the described expenses and the state use mileage in the discharge of my official duties of the state."
A41: Traveler Signature: | M41: Date
A43: Supervisor Signature | M43: Date
A45: Budget Unit Head Signature: | M45: Date
A47: Title III Signature (if applicable): | M47: Date

Sheet Page 2 - Travel Expenses
F1: Itemized Travel Expenses
A4: Traveler Name: | B4: ='Page1 - Expense Report'!D5 -> 0 | D4: GA License Plate Number: | T4: YES | V4: Automobile
C6: Select type of personal vehicle: | F6: Automobile
A7: Date | B7: Origin | C7: Destination | D7: Odometer Reading | G7: Commute Miles | H7: Personal Miles | I7: State Use Miles
D8: Starting | E8: Ending | F8: Total Miles
F9: =E9-D9 -> 0 | I9: =+F9-G9-H9 -> 0
F10: =E10-D10 -> 0 | I10: =+F10-G10-H10 -> 0
F11: 0 | I11: 0
F12: 0 | I12: 0
F13: 0 | I13: 0
F14: 0 | I14: 0
F15: 0 | I15: 0
F16: 0 | I16: 0
F17: 0 | I17: 0
F18: 0 | I18: 0
F19: 0 | I19: 0
F20: 0 | I20: 0
F21: 0 | I21: 0
F22: 0 | I22: 0
A23: Indicate use of motor pool vehicle or shared transportation: | G23: Total State Use Miles | I23: =SUM(I9:I22) -> 0
A25: Motor Pool Vehicle was used for travel
A26: Person(s) traveled with:
A28: Purpose of the Trip:
A31: All reimbursable expenses must be listed and appropriate original receipts attached.
A32: Date | B32: Commercial Transportation (Including Parking, Taxi, Tolls) | I32: Amount
A40: TOTAL COMMON CARRIER, ETC… | I40: =SUM(I34:I39) -> 0
A41: Date | B41: Miscellaneous Expenses | I41: Amount
A47: TOTAL MISCELLANEOUS | I47: =SUM(I42:I46) -> 0
A48: Note: Please be sure to attach all necessary receipts, indicate travel start time on the departure date and the travel return time on the return date, and to
A49: attach program agendas (conference schedule), if applicable.

Sheet per diem tables (hidden)
A1: M&IE Total | B1: Breakfast | C1: Lunch | D1: Dinner | E1: Incidentals
A2: 0.75 | B2: 0 | C2: 0 | D2: 0 | E2: 0.75
A3: 1 | B3: 0 | C3: 0 | D3: 0 | E3: 1
A4: 1.5 | B4: 0 | C4: 0 | D4: 0.75 | E4: 0.75
A5: 2 | B5: 0 | C5: 0 | D5: 1 | E5: 1
A6: 2.25 | B6: 0 | C6: 0.75 | D6: 0.75 | E6: 0.75
A7: 3 | B7: 0 | C7: 1 | D7: 1 | E7: 1
A8: 3.75 | B8: 0.75 | C8: 0.75 | D8: 1.5 | E8: 0.75
A9: 4 | B9: 1 | C9: 1 | D9: 1 | E9: 1
A10: 4.5 | B10: 0.75 | C10: 1.5 | D10: 1.5 | E10: 0.75
A11: 5 | B11: 1 | C11: 1 | D11: 2 | E11: 1
A12: 5.25 | B12: 0.75 | C12: 1.5 | D12: 2.25 | E12: 0.75
A13: 6 | B13: 1 | C13: 2 | D13: 2 | E13: 1
A14: 6.75 | B14: 0.75 | C14: 1.5 | D14: 3 | E14: 1.5
A15: 7 | B15: 1 | C15: 2 | D15: 3 | E15: 1
A16: 7.5 | B16: 1.5 | C16: 1.5 | D16: 3 | E16: 1.5
A17: 8 | B17: 1 | C17: 2 | D17: 3 | E17: 2
A18: 8.25 | B18: 1.5 | C18: 2.25 | D18: 3 | E18: 1.5
A19: 9 | B19: 1 | C19: 2 | D19: 4 | E19: 2
A20: 9.75 | B20: 1.5 | C20: 2.25 | D20: 3.75 | E20: 2.25
A21: 10 | B21: 2 | C21: 2 | D21: 4 | E21: 2
A22: 10.5 | B22: 1.5 | C22: 3 | D22: 3.75 | E22: 2.25
A23: 11 | B23: 2 | C23: 3 | D23: 4 | E23: 2
A24: 11.25 | B24: 1.5 | C24: 3 | D24: 4.5 | E24: 2.25
A25: 12 | B25: 2 | C25: 3 | D25: 5 | E25: 2
A26: 12.75 | B26: 2.25 | C26: 3 | D26: 5.25 | E26: 2.25
A27: 13 | B27: 2 | C27: 3 | D27: 5 | E27: 3
A28: 13.5 | B28: 2.25 | C28: 3.75 | D28: 5.25 | E28: 2.25
A29: 14 | B29: 2 | C29: 4 | D29: 5 | E29: 3
A30: 14.25 | B30: 2.25 | C30: 3.75 | D30: 6 | E30: 2.25
A31: 15 | B31: 2 | C31: 4 | D31: 6 | E31: 3
A32: 15.75 | B32: 2.25 | C32: 3.75 | D32: 6.75 | E32: 3
A33: 16 | B33: 2 | C33: 4 | D33: 7 | E33: 3
A34: 16.5 | B34: 2.25 | C34: 4.5 | D34: 6.75 | E34: 3
A35: 17 | B35: 3 | C35: 4 | D35: 7 | E35: 3
A36: 17.25 | B36: 2.25 | C36: 4.5 | D36: 6.75 | E36: 3.75
A37: 18 | B37: 3 | C37: 5 | D37: 7 | E37: 3
A38: 18.75 | B38: 3 | C38: 4.5 | D38: 7.5 | E38: 3.75
A39: 19 | B39: 3 | C39: 5 | D39: 8 | E39: 3
A40: 19.5 | B40: 3 | C40: 5.25 | D40: 8.25 | E40: 3.75
A41: 20 | B41: 3 | C41: 5 | D41: 8 | E41: 4
A42: 20.25 | B42: 3 | C42: 5.25 | D42: 8.25 | E42: 3.75
A43: 21 | B43: 3 | C43: 5 | D43: 9 | E43: 4
A44: 21.75 | B44: 3 | C44: 5.25 | D44: 9 | E44: 4.5
A45: 22 | B45: 3 | C45: 6 | D45: 9 | E45: 4
A46: 22.5 | B46: 3.75 | C46: 5.25 | D46: 9 | E46: 4.5
A47: 23 | B47: 3 | C47: 6 | D47: 9 | E47: 5
A48: 23.25 | B48: 3.75 | C48: 6 | D48: 9 | E48: 4.5
A49: 24 | B49: 4 | C49: 6 | D49: 9 | E49: 5
A50: 24.75 | B50: 3.75 | C50: 6 | D50: 9.75 | E50: 5.25
A51: 25 | B51: 4 | C51: 6 | D51: 10 | E51: 5
A52: 25.5 | B52: 3.75 | C52: 6.75 | D52: 9.75 | E52: 5.25
A53: 26 | B53: 4 | C53: 7 | D53: 11 | E53: 5
A54: 26.25 | B54: 3.75 | C54: 6.75 | D54: 10.5 | E54: 5.25
A55: 27 | B55: 4 | C55: 7 | D55: 11 | E55: 5
A56: 27.75 | B56: 4.5 | C56: 6.75 | D56: 11.25 | E56: 5.25
A57: 28 | B57: 4 | C57: 7 | D57: 11 | E57: 6
A58: 28.5 | B58: 4.5 | C58: 7.5 | D58: 11.25 | E58: 5.25
A59: 29 | B59: 4 | C59: 7 | D59: 12 | E59: 6
A60: 29.25 | B60: 4.5 | C60: 7.5 | D60: 12 | E60: 5.25
A61: 30 | B61: 5 | C61: 7 | D61: 12 | E61: 6
A62: 30.75 | B62: 4.5 | C62: 7.5 | D62: 12.75 | E62: 6
A63: 31 | B63: 5 | C63: 8 | D63: 12 | E63: 6
A64: 31.5 | B64: 4.5 | C64: 8.25 | D64: 12.75 | E64: 6
A65: 32 | B65: 5 | C65: 8 | D65: 13 | E65: 6
A66: 32.25 | B66: 4.5 | C66: 8.25 | D66: 12.75 | E66: 6.75
A67: 33 | B67: 5 | C67: 8 | D67: 13 | E67: 7
A68: 33.75 | B68: 5.25 | C68: 8.25 | D68: 13.5 | E68: 6.75
A69: 34 | B69: 5 | C69: 9 | D69: 13 | E69: 7
A70: 34.5 | B70: 5.25 | C70: 9 | D70: 13.5 | E70: 6.75
A71: 35 | B71: 5 | C71: 9 | D71: 14 | E71: 7
A72: 35.25 | B72: 5.25 | C72: 9 | D72: 14.25 | E72: 6.75
A73: 36 | B73: 5 | C73: 9 | D73: 15 | E73: 7
A74: 36.75 | B74: 5.25 | C74: 9 | D74: 15 | E74: 7.5
A75: 37 | B75: 6 | C75: 9 | D75: 15 | E75: 7
A76: 37.5 | B76: 6 | C76: 9 | D76: 15 | E76: 7.5
A77: 38 | B77: 6 | C77: 10 | D77: 15 | E77: 7
A78: 38.25 | B78: 6 | C78: 9.75 | D78: 15 | E78: 7.5
A79: 39 | B79: 6 | C79: 10 | D79: 16 | E79: 7
A80: 39.75 | B80: 6 | C80: 9.75 | D80: 15.75 | E80: 8.25
A81: 40 | B81: 6 | C81: 10 | D81: 16 | E81: 8
A82: 40.5 | B82: 6 | C82: 10.5 | D82: 15.75 | E82: 8.25
A83: 41 | B83: 6 | C83: 10 | D83: 17 | E83: 8
A84: 41.25 | B84: 6 | C84: 10.5 | D84: 16.5 | E84: 8.25
A85: 42 | B85: 6 | C85: 11 | D85: 17 | E85: 8
A86: 42.75 | B86: 6.75 | C86: 10.5 | D86: 17.25 | E86: 8.25
A87: 43 | B87: 6 | C87: 11 | D87: 17 | E87: 9
A88: 43.5 | B88: 6.75 | C88: 11.25 | D88: 17.25 | E88: 8.25
A89: 44 | B89: 7 | C89: 11 | D89: 17 | E89: 9
A90: 44.25 | B90: 6.75 | C90: 11.25 | D90: 18 | E90: 8.25
A91: 45 | B91: 7 | C91: 11 | D91: 18 | E91: 9
A92: 45.75 | B92: 6.75 | C92: 11.25 | D92: 18.75 | E92: 9
A93: 46 | B93: 7 | C93: 12 | D93: 18 | E93: 9
A94: 46.5 | B94: 6.75 | C94: 12 | D94: 18.75 | E94: 9
A95: 47 | B95: 7 | C95: 12 | D95: 19 | E95: 9
A96: 47.25 | B96: 6.75 | C96: 12 | D96: 18.75 | E96: 9.75
A97: 48 | B97: 7 | C97: 12 | D97: 19 | E97: 10
A98: 48.75 | B98: 7.5 | C98: 12 | D98: 19.5 | E98: 9.75
A99: 49 | B99: 7 | C99: 12 | D99: 20 | E99: 10
A100: 49.5 | B100: 7.5 | C100: 12.75 | D100: 19.5 | E100: 9.75
A101: 50 | B101: 8 | C101: 12 | D101: 20 | E101: 10
A102: 50.25 | B102: 7.5 | C102: 12.75 | D102: 20.25 | E102: 9.75
A103: 51 | B103: 8 | C103: 13 | D103: 20 | E103: 10
A104: 51.75 | B104: 7.5 | C104: 12.75 | D104: 21 | E104: 10.5
A105: 52 | B105: 8 | C105: 13 | D105: 21 | E105: 10
A106: 52.5 | B106: 8.25 | C106: 12.75 | D106: 21 | E106: 10.5
A107: 53 | B107: 8 | C107: 13 | D107: 21 | E107: 11
A108: 53.25 | B108: 8.25 | C108: 13.5 | D108: 21 | E108: 10.5
A109: 54 | B109: 8 | C109: 14 | D109: 21 | E109: 11
A110: 54.75 | B110: 8.25 | C110: 13.5 | D110: 21.75 | E110: 11.25
A111: 55 | B111: 8 | C111: 14 | D111: 22 | E111: 11
A112: 55.5 | B112: 8.25 | C112: 14.25 | D112: 21.75 | E112: 11.25
A113: 56 | B113: 8 | C113: 14 | D113: 23 | E113: 11
A114: 56.25 | B114: 8.25 | C114: 14.25 | D114: 22.5 | E114: 11.25
A115: 57 | B115: 9 | C115: 14 | D115: 23 | E115: 11
A116: 57.75 | B116: 9 | C116: 14.25 | D116: 23.25 | E116: 11.25
A117: 58 | B117: 9 | C117: 15 | D117: 23 | E117: 11
A118: 58.5 | B118: 9 | C118: 15 | D118: 23.25 | E118: 11.25
A119: 59 | B119: 9 | C119: 15 | D119: 24 | E119: 11
A120: 59.25 | B120: 9 | C120: 15 | D120: 24 | E120: 11.25
A121: 60 | B121: 9 | C121: 15 | D121: 24 | E121: 12
A122: 60.75 | B122: 9 | C122: 15 | D122: 24.75 | E122: 12
A123: 61 | B123: 9 | C123: 15 | D123: 25 | E123: 12
A124: 61.5 | B124: 9 | C124: 15.75 | D124: 24.75 | E124: 12
A125: 62 | B125: 9 | C125: 16 | D125: 25 | E125: 12
A126: 62.25 | B126: 9 | C126: 15.75 | D126: 24.75 | E126: 12.75
A127: 63 | B127: 9 | C127: 16 | D127: 25 | E127: 13
A128: 63.75 | B128: 9.75 | C128: 15.75 | D128: 25.5 | E128: 12.75
A129: 64 | B129: 10 | C129: 16 | D129: 25 | E129: 13
A130: 64.5 | B130: 9.75 | C130: 16.5 | D130: 25.5 | E130: 12.75
A131: 65 | B131: 10 | C131: 16 | D131: 26 | E131: 13
A132: 65.25 | B132: 9.75 | C132: 16.5 | D132: 26.25 | E132: 12.75
A133: 66 | B133: 10 | C133: 17 | D133: 26 | E133: 13
A134: 66.75 | B134: 9.75 | C134: 16.5 | D134: 27 | E134: 13.5
A135: 67 | B135: 10 | C135: 17 | D135: 27 | E135: 13
A136: 67.5 | B136: 10.5 | C136: 16.5 | D136: 27 | E136: 13.5
A137: 68 | B137: 10 | C137: 17 | D137: 27 | E137: 14
A138: 68.25 | B138: 10.5 | C138: 17.25 | D138: 27 | E138: 13.5
A139: 69 | B139: 10 | C139: 17 | D139: 28 | E139: 14
A140: 69.75 | B140: 10.5 | C140: 17.25 | D140: 27.75 | E140: 14.25
A141: 70 | B141: 11 | C141: 17 | D141: 28 | E141: 14
A142: 70.5 | B142: 10.5 | C142: 18 | D142: 27.75 | E142: 14.25
A143: 71 | B143: 11 | C143: 18 | D143: 28 | E143: 14
A144: 71.25 | B144: 10.5 | C144: 18 | D144: 28.5 | E144: 14.25
A145: 72 | B145: 11 | C145: 18 | D145: 29 | E145: 14
A146: 72.75 | B146: 11.25 | C146: 18 | D146: 29.25 | E146: 14.25
A147: 73 | B147: 11 | C147: 18 | D147: 29 | E147: 15
A148: 73.5 | B148: 11.25 | C148: 18.75 | D148: 29.25 | E148: 14.25
A149: 74 | B149: 11 | C149: 19 | D149: 29 | E149: 15
A150: 74.25 | B150: 11.25 | C150: 18.75 | D150: 30 | E150: 14.25
A151: 75 | B151: 11 | C151: 19 | D151: 30 | E151: 15
A152: 75.75 | B152: 11.25 | C152: 18.75 | D152: 30.75 | E152: 15
A153: 76 | B153: 11 | C153: 19 | D153: 31 | E153: 15
A154: 76.5 | B154: 11.25 | C154: 19.5 | D154: 30.75 | E154: 15
A155: 77 | B155: 12 | C155: 19 | D155: 31 | E155: 15
A156: 77.25 | B156: 11.25 | C156: 19.5 | D156: 30.75 | E156: 15.75
A157: 78 | B157: 12 | C157: 20 | D157: 31 | E157: 15
A158: 78.75 | B158: 12 | C158: 19.5 | D158: 31.5 | E158: 15.75
A159: 79 | B159: 12 | C159: 20 | D159: 32 | E159: 15
A160: 79.5 | B160: 12 | C160: 20.25 | D160: 31.5 | E160: 15.75
A161: 80 | B161: 12 | C161: 20 | D161: 32 | E161: 16
A162: 80.25 | B162: 12 | C162: 20.25 | D162: 32.25 | E162: 15.75
A163: 81 | B163: 12 | C163: 20 | D163: 33 | E163: 16
A164: 81.75 | B164: 12 | C164: 20.25 | D164: 33 | E164: 16.5
A165: 82 | B165: 12 | C165: 21 | D165: 33 | E165: 16
A166: 82.5 | B166: 12.75 | C166: 20.25 | D166: 33 | E166: 16.5
A167: 83 | B167: 12 | C167: 21 | D167: 33 | E167: 17
A168: 83.25 | B168: 12.75 | C168: 21 | D168: 33 | E168: 16.5
A169: 84 | B169: 13 | C169: 21 | D169: 33 | E169: 17
A170: 84.75 | B170: 12.75 | C170: 21 | D170: 33.75 | E170: 17.25
A171: 85 | B171: 13 | C171: 21 | D171: 34 | E171: 17
A172: 85.5 | B172: 12.75 | C172: 21.75 | D172: 33.75 | E172: 17.25
A173: 86 | B173: 13 | C173: 22 | D173: 34 | E173: 17
A174: 86.25 | B174: 12.75 | C174: 21.75 | D174: 34.5 | E174: 17.25
A175: 87 | B175: 13 | C175: 22 | D175: 35 | E175: 17
A176: 87.75 | B176: 13.5 | C176: 21.75 | D176: 35.25 | E176: 17.25
A177: 88 | B177: 13 | C177: 22 | D177: 35 | E177: 18
A178: 88.5 | B178: 13.5 | C178: 22.5 | D178: 35.25 | E178: 17.25
A179: 89 | B179: 13 | C179: 22 | D179: 36 | E179: 18
A180: 89.25 | B180: 13.5 | C180: 22.5 | D180: 36 | E180: 17.25
A181: 90 | B181: 14 | C181: 22 | D181: 36 | E181: 18
A182: 90.75 | B182: 13.5 | C182: 22.5 | D182: 36.75 | E182: 18
A183: 91 | B183: 14 | C183: 23 | D183: 36 | E183: 18
A184: 91.5 | B184: 13.5 | C184: 23.25 | D184: 36.75 | E184: 18
A185: 92 | B185: 14 | C185: 23 | D185: 37 | E185: 18
A186: 92.25 | B186: 13.5 | C186: 23.25 | D186: 36.75 | E186: 18.75
A187: 93 | B187: 14 | C187: 23 | D187: 37 | E187: 19
A188: 93.75 | B188: 14.25 | C188: 23.25 | D188: 37.5 | E188: 18.75
A189: 94 | B189: 14 | C189: 24 | D189: 37 | E189: 19
A190: 94.5 | B190: 14.25 | C190: 24 | D190: 37.5 | E190: 18.75
A191: 95 | B191: 14 | C191: 24 | D191: 38 | E191: 19
A192: 95.25 | B192: 14.25 | C192: 24 | D192: 38.25 | E192: 18.75
A193: 96 | B193: 14 | C193: 24 | D193: 39 | E193: 19
A194: 96.75 | B194: 14.25 | C194: 24 | D194: 39 | E194: 19.5
A195: 97 | B195: 15 | C195: 24 | D195: 39 | E195: 19
A196: 97.5 | B196: 15 | C196: 24 | D196: 39 | E196: 19.5
A197: 98 | B197: 15 | C197: 25 | D197: 39 | E197: 19
A198: 98.25 | B198: 15 | C198: 24.75 | D198: 39 | E198: 19.5
A199: 99 | B199: 15 | C199: 25 | D199: 40 | E199: 19
A200: 99.75 | B200: 15 | C200: 24.75 | D200: 39.75 | E200: 20.25
... 1246 more rows

Sheet SEA0714 (hidden)
A1: Country Name | B1: State/Country | C1: Location | D1: Season Code | E1: Season Begin | F1: Season End | G1: Lodging | H1: Meals & Incidentals | I1: Per Diem | J1: Effective Date | K1: Footnote Reference | L1: Location Code
A2: =CONCATENATE(Table3[[#This Row],[State/Country]],"-",Table3[[#This Row],[Location]]," ( ",Table3[[#This Row],[Season Code]]," )") -> Please-Select ( ALL ) | B2: Please | C2: Select | D2: ALL | I2: =G2+H2 -> 0
A3: =CONCATENATE(Table3[[#This Row],[State/Country]],"-",Table3[[#This Row],[Location]]," ( ",Table3[[#This Row],[Season Code]]," )") -> Afghanistan-Herat (Non-Us Facilities) ( 01/01-12/31 ) | B3: Afghanistan | C3: Herat (Non-Us Facilities) | D3: =CONCATENATE(Table3[[#This Row],[Season Begin]],"-",Table3[[#This Row],[Season End]]) -> 01/01-12/31 | E3: 01/01 | F3: 12/31 | G3: 99 | H3: 40 | I3: =G3+H3 -> 139 | J3: 06/01/2011 | K3: 19,2 | L3: 11804
A4: =CONCATENATE(Table3[[#This Row],[State/Country]],"-",Table3[[#This Row],[Location]]," ( ",Table3[[#This Row],[Season Code]]," )") -> Afghanistan-Herat ( 01/01-12/31 ) | B4: Afghanistan | C4: Herat | D4: =CONCATENATE(Table3[[#This Row],[Season Begin]],"-",Table3[[#This Row],[Season End]]) -> 01/01-12/31 | E4: 01/01 | F4: 12/31 | G4: 0 | H4: 28 | I4: 28 | J4: 06/01/2011 | K4: 19,2 | L4: 10323
A5: =CONCATENATE(Table3[[#This Row],[State/Country]],"-",Table3[[#This Row],[Location]]," ( ",Table3[[#This Row],[Season Code]]," )") -> Afghanistan-Kabul (Non-Us Facilities) ( 01/01-12/31 ) | B5: Afghanistan | C5: Kabul (Non-Us Facilities) | D5: =CONCATENATE(Table3[[#This Row],[Season Begin]],"-",Table3[[#This Row],[Season End]]) -> 01/01-12/31 | E5: 01/01 | F5: 12/31 | G5: 102 | H5: 100 | I5: 202 | J5: 09/01/2009 | L5: 11908
A6: =CONCATENATE(Table3[[#This Row],[State/Country]],"-",Table3[[#This Row],[Location]]," ( ",Table3[[#This Row],[Season Code]]," )") -> Afghanistan-Kabul ( 01/01-12/31 ) | B6: Afghanistan | C6: Kabul | D6: =CONCATENATE(Table3[[#This Row],[Season Begin]],"-",Table3[[#This Row],[Season End]]) -> 01/01-12/31 | E6: 01/01 | F6: 12/31 | G6: 0 | H6: 28 | I6: 28 | J6: 05/01/2010 | L6: 10104
A7: =CONCATENATE(Table3[[#This Row],[State/Country]],"-",Table3[[#This Row],[Location]]," ( ",Table3[[#This Row],[Season Code]]," )") -> Afghanistan-Military Bases In Kabul ( 01/01-12/31 ) | B7: Afghanistan | C7: Military Bases In Kabul | D7: =CONCATENATE(Table3[[#This Row],[Season Begin]],"-",Table3[[#This Row],[Season End]]) -> 01/01-12/31 | E7: 01/01 | F7: 12/31 | G7: 0 | H7: 28 | I7: 28 | J7: 05/01/2010 | K7: 19,2 | L7: 11805
A8: =CONCATENATE(Table3[[#This Row],[State/Country]],"-",Table3[[#This Row],[Location]]," ( ",Table3[[#This Row],[Season Code]]," )") -> Afghanistan-Military Bases Not In Kabul ( 01/01-12/31 ) | B8: Afghanistan | C8: Military Bases Not In Kabul | D8: =CONCATENATE(Table3[[#This Row],[Season Begin]],"-",Table3[[#This Row],[Season End]]) -> 01/01-12/31 | E8: 01/01 | F8: 12/31 | G8: 0 | H8: 15 | I8: 15 | J8: 08/01/2003 | K8: 19,2 | L8: 10324
A9: =CONCATENATE(Table3[[#This Row],[State/Country]],"-",Table3[[#This Row],[Location]]," ( ",Table3[[#This Row],[Season Code]]," )") -> Afghanistan-[Other] (Non-Us Facilities) ( 01/01-12/31 ) | B9: Afghanistan | C9: [Other] (Non-Us Facilities) | D9: =CONCATENATE(Table3[[#This Row],[Season Begin]],"-",Table3[[#This Row],[Season End]]) -> 01/01-12/31 | E9: 01/01 | F9: 12/31 | G9: 51 | H9: 50 | I9: 101 | J9: 09/01/2009 | L9: 11079
A10: =CONCATENATE(Table3[[#This Row],[State/Country]],"-",Table3[[#This Row],[Location]]," ( ",Table3[[#This Row],[Season Code]]," )") -> Afghanistan-[Other] ( 01/01-12/31 ) | B10: Afghanistan | C10: [Other] | D10: =CONCATENATE(Table3[[#This Row],[Season Begin]],"-",Table3[[#This Row],[Season End]]) -> 01/01-12/31 | E10: 01/01 | F10: 12/31 | G10: 0 | H10: 15 | I10: 15 | J10: 08/01/2003 | L10: 11822
A11: =CONCATENATE(Table3[[#This Row],[State/Country]],"-",Table3[[#This Row],[Location]]," ( ",Table3[[#This Row],[Season Code]]," )") -> USA, Alaska-Adak ( 01/01-12/31 ) | B11: USA, Alaska | C11: Adak | D11: =CONCATENATE(Table3[[#This Row],[Season Begin]],"-",Table3[[#This Row],[Season End]]) -> 01/01-12/31 | E11: 01/01 | F11: 12/31 | G11: 192 | H11: 69 | I11: 261 | J11: 07/01/2014 | L11: 10373
A12: =CONCATENATE(Table3[[#This Row],[State/Country]],"-",Table3[[#This Row],[Location]]," ( ",Table3[[#This Row],[Season Code]]," )") -> USA, Alaska-Anchorage [Incl Nav Res] ( 05/16-09/30 ) | B12: USA, Alaska | C12: Anchorage [Incl Nav Res] | D12: =CONCATENATE(Table3[[#This Row],[Season Begin]],"-",Table3[[#This Row],[Season End]]) -> 05/16-09/30 | E12: 05/16 | F12: 09/30 | G12: 190 | H12: 102 | I12: 292 | J12: 12/01/2013 | L12: 19015
A13: =CONCATENATE(Table3[[#This Row],[State/Country]],"-",Table3[[#This Row],[Location]]," ( ",Table3[[#This Row],[Season Code]]," )") -> USA, Alaska-Anchorage [Incl Nav Res] ( 10/01-05/15 ) | B13: USA, Alaska | C13: Anchorage [Incl Nav Res] | D13: =CONCATENATE(Table3[[#This Row],[Season Begin]],"-",Table3[[#This Row],[Season End]]) -> 10/01-05/15 | E13: 10/01 | F13: 05/15 | G13: 99 | H13: 93 | I13: 192 | J13: 12/01/2013 | L13: 19015
A14: =CONCATENATE(Table3[[#This Row],[State/Country]],"-",Table3[[#This Row],[Location]]," ( ",Table3[[#This Row],[Season Code]]," )") -> USA, Alaska-Barrow ( 05/15-09/14 ) | B14: USA, Alaska | C14: Barrow | D14: =CONCATENATE(Table3[[#This Row],[Season Begin]],"-",Table3[[#This Row],[Season End]]) -> 05/15-09/14 | E14: 05/15 | F14: 09/14 | G14: 177 | H14: 94 | I14: 271 | J14: 04/01/2013 | L14: 19942
A15: =CONCATENATE(Table3[[#This Row],[State/Country]],"-",Table3[[#This Row],[Location]]," ( ",Table3[[#This Row],[Season Code]]," )") -> USA, Alaska-Barrow ( 09/15-05/14 ) | B15: USA, Alaska | C15: Barrow | D15: =CONCATENATE(Table3[[#This Row],[Season Begin]],"-",Table3[[#This Row],[Season End]]) -> 09/15-05/14 | E15: 09/15 | F15: 05/14 | G15: 159 | H15: 93 | I15: 252 | J15: 04/01/2013 | L15: 11984
A16: =CONCATENATE(Table3[[#This Row],[State/Country]],"-",Table3[[#This Row],[Location]]," ( ",Table3[[#This Row],[Season Code]]," )") -> USA, Alaska-Bethel ( 01/01-12/31 ) | B16: USA, Alaska | C16: Bethel | D16: =CONCATENATE(Table3[[#This Row],[Season Begin]],"-",Table3[[#This Row],[Season End]]) -> 01/01-12/31 | E16: 01/01 | F16: 12/31 | G16: 179 | H16: 109 | I16: 288 | J16: 12/01/2013 | L16: 11984
A17: =CONCATENATE(Table3[[#This Row],[State/Country]],"-",Table3[[#This Row],[Location]]," ( ",Table3[[#This Row],[Season Code]]," )") -> USA, Alaska-Bettles ( 01/01-12/31 ) | B17: USA, Alaska | C17: Bettles | D17: =CONCATENATE(Table3[[#This Row],[Season Begin]],"-",Table3[[#This Row],[Season End]]) -> 01/01-12/31 | E17: 01/01 | F17: 12/31 | G17: 175 | H17: 83 | I17: 258 | J17: 06/01/2014 | L17: 11052
A18: =CONCATENATE(Table3[[#This Row],[State/Country]],"-",Table3[[#This Row],[Location]]," ( ",Table3[[#This Row],[Season Code]]," )") -> USA, Alaska-Clear Ab ( 01/01-12/31 ) | B18: USA, Alaska | C18: Clear Ab | D18: =CONCATENATE(Table3[[#This Row],[Season Begin]],"-",Table3[[#This Row],[Season End]]) -> 01/01-12/31 | E18: 01/01 | F18: 12/31 | G18: 90 | H18: 82 | I18: 172 | J18: 10/01/2006 | L18: 11052
A19: =CONCATENATE(Table3[[#This Row],[State/Country]],"-",Table3[[#This Row],[Location]]," ( ",Table3[[#This Row],[Season Code]]," )") -> USA, Alaska-Coldfoot ( 01/01-12/31 ) | B19: USA, Alaska | C19: Coldfoot | D19: =CONCATENATE(Table3[[#This Row],[Season Begin]],"-",Table3[[#This Row],[Season End]]) -> 01/01-12/31 | E19: 01/01 | F19: 12/31 | G19: 165 | H19: 70 | I19: 235 | J19: 10/01/2006 | L19: 11737
A20: =CONCATENATE(Table3[[#This Row],[State/Country]],"-",Table3[[#This Row],[Location]]," ( ",Table3[[#This Row],[Season Code]]," )") -> USA, Alaska-Copper Center ( 05/15-09/15 ) | B20: USA, Alaska | C20: Copper Center | D20: =CONCATENATE(Table3[[#This Row],[Season Begin]],"-",Table3[[#This Row],[Season End]]) -> 05/15-09/15 | E20: 05/15 | F20: 09/15 | G20: 149 | H20: 85 | I20: 234 | J20: 01/01/2013 | L20: 12637
A21: =CONCATENATE(Table3[[#This Row],[State/Country]],"-",Table3[[#This Row],[Location]]," ( ",Table3[[#This Row],[Season Code]]," )") -> USA, Alaska-Copper Center ( 09/16-05/14 ) | B21: USA, Alaska | C21: Copper Center | D21: =CONCATENATE(Table3[[#This Row],[Season Begin]],"-",Table3[[#This Row],[Season End]]) -> 09/16-05/14 | E21: 09/16 | F21: 05/14 | G21: 99 | H21: 80 | I21: 179 | J21: 01/01/2013 | L21: 10016
A22: =CONCATENATE(Table3[[#This Row],[State/Country]],"-",Table3[[#This Row],[Location]]," ( ",Table3[[#This Row],[Season Code]]," )") -> USA, Alaska-Cordova ( 01/01-12/31 ) | B22: USA, Alaska | C22: Cordova | D22: =CONCATENATE(Table3[[#This Row],[Season Begin]],"-",Table3[[#This Row],[Season End]]) -> 01/01-12/31 | E22: 01/01 | F22: 12/31 | G22: 95 | H22: 102 | I22: 197 | J22: 12/01/2013 | L22: 19952
A23: =CONCATENATE(Table3[[#This Row],[State/Country]],"-",Table3[[#This Row],[Location]]," ( ",Table3[[#This Row],[Season Code]]," )") -> USA, Alaska-Craig ( 04/01-09/30 ) | B23: USA, Alaska | C23: Craig | D23: =CONCATENATE(Table3[[#This Row],[Season Begin]],"-",Table3[[#This Row],[Season End]]) -> 04/01-09/30 | E23: 04/01 | F23: 09/30 | G23: 129 | H23: 77 | I23: 206 | J23: 06/01/2014 | L23: 11756
A24: =CONCATENATE(Table3[[#This Row],[State/Country]],"-",Table3[[#This Row],[Location]]," ( ",Table3[[#This Row],[Season Code]]," )") -> USA, Alaska-Craig ( 10/01-03/31 ) | B24: USA, Alaska | C24: Craig | D24: =CONCATENATE(Table3[[#This Row],[Season Begin]],"-",Table3[[#This Row],[Season End]]) -> 10/01-03/31 | E24: 10/01 | F24: 03/31 | G24: 85 | H24: 72 | I24: 157 | J24: 06/01/2014 | L24: 10105
A25: =CONCATENATE(Table3[[#This Row],[State/Country]],"-",Table3[[#This Row],[Location]]," ( ",Table3[[#This Row],[Season Code]]," )") -> USA, Alaska-Deadhorse ( 01/01-12/31 ) | B25: USA, Alaska | C25: Deadhorse | D25: =CONCATENATE(Table3[[#This Row],[Season Begin]],"-",Table3[[#This Row],[Season End]]) -> 01/01-12/31 | E25: 01/01 | F25: 12/31 | G25: 170 | H25: 70 | I25: 240 | J25: 05/01/2014 | L25: 11053
A26: =CONCATENATE(Table3[[#This Row],[State/Country]],"-",Table3[[#This Row],[Location]]," ( ",Table3[[#This Row],[Season Code]]," )") -> USA, Alaska-Delta Junction ( 01/01-12/31 ) | B26: USA, Alaska | C26: Delta Junction | D26: =CONCATENATE(Table3[[#This Row],[Season Begin]],"-",Table3[[#This Row],[Season End]]) -> 01/01-12/31 | E26: 01/01 | F26: 12/31 | G26: 128 | H26: 54 | I26: 182 | J26: 12/01/2013 | L26: 11787
A27: =CONCATENATE(Table3[[#This Row],[State/Country]],"-",Table3[[#This Row],[Location]]," ( ",Table3[[#This Row],[Season Code]]," )") -> USA, Alaska-Denali National Park ( 05/01-09/30 ) | B27: USA, Alaska | C27: Denali National Park | D27: =CONCATENATE(Table3[[#This Row],[Season Begin]],"-",Table3[[#This Row],[Season End]]) -> 05/01-09/30 | E27: 05/01 | F27: 09/30 | G27: 159 | H27: 94 | I27: 253 | J27: 12/01/2013 | L27: 10244
A28: =CONCATENATE(Table3[[#This Row],[State/Country]],"-",Table3[[#This Row],[Location]]," ( ",Table3[[#This Row],[Season Code]]," )") -> USA, Alaska-Denali National Park ( 10/01-04/30 ) | B28: USA, Alaska | C28: Denali National Park | D28: =CONCATENATE(Table3[[#This Row],[Season Begin]],"-",Table3[[#This Row],[Season End]]) -> 10/01-04/30 | E28: 10/01 | F28: 04/30 | G28: 89 | H28: 87 | I28: 176 | J28: 12/01/2013 | L28: 10245
A29: =CONCATENATE(Table3[[#This Row],[State/Country]],"-",Table3[[#This Row],[Location]]," ( ",Table3[[#This Row],[Season Code]]," )") -> USA, Alaska-Dillingham ( 05/15-10/15 ) | B29: USA, Alaska | C29: Dillingham | D29: =CONCATENATE(Table3[[#This Row],[Season Begin]],"-",Table3[[#This Row],[Season End]]) -> 05/15-10/15 | E29: 05/15 | F29: 10/15 | G29: 185 | H29: 111 | I29: 296 | J29: 01/01/2011 | L29: 15035
A30: =CONCATENATE(Table3[[#This Row],[State/Country]],"-",Table3[[#This Row],[Location]]," ( ",Table3[[#This Row],[Season Code]]," )") -> USA, Alaska-Dillingham ( 10/16-05/14 ) | B30: USA, Alaska | C30: Dillingham | D30: =CONCATENATE(Table3[[#This Row],[Season Begin]],"-",Table3[[#This Row],[Season End]]) -> 10/16-05/14 | E30: 10/16 | F30: 05/14 | G30: 169 | H30: 109 | I30: 278 | J30: 01/01/2011 | L30: 12583
A31: =CONCATENATE(Table3[[#This Row],[State/Country]],"-",Table3[[#This Row],[Location]]," ( ",Table3[[#This Row],[Season Code]]," )") -> USA, Alaska-Dutch Harbor-Unalaska ( 01/01-12/31 ) | B31: USA, Alaska | C31: Dutch Harbor-Unalaska | D31: =CONCATENATE(Table3[[#This Row],[Season Begin]],"-",Table3[[#This Row],[Season End]]) -> 01/01-12/31 | E31: 01/01 | F31: 12/31 | G31: 121 | H31: 102 | I31: 223 | J31: 02/01/2012 | L31: 10243
A32: =CONCATENATE(Table3[[#This Row],[State/Country]],"-",Table3[[#This Row],[Location]]," ( ",Table3[[#This Row],[Season Code]]," )") -> USA, Alaska-Eareckson Air Station ( 01/01-12/31 ) | B32: USA, Alaska | C32: Eareckson Air Station | D32: =CONCATENATE(Table3[[#This Row],[Season Begin]],"-",Table3[[#This Row],[Season End]]) -> 01/01-12/31 | E32: 01/01 | F32: 12/31 | G32: 90 | H32: 77 | I32: 167 | J32: 06/01/2007 | L32: 12342
A33: =CONCATENATE(Table3[[#This Row],[State/Country]],"-",Table3[[#This Row],[Location]]," ( ",Table3[[#This Row],[Season Code]]," )") -> USA, Alaska-Eielson Afb ( 05/15-09/15 ) | B33: USA, Alaska | C33: Eielson Afb | D33: =CONCATENATE(Table3[[#This Row],[Season Begin]],"-",Table3[[#This Row],[Season End]]) -> 05/15-09/15 | E33: 05/15 | F33: 09/15 | G33: 154 | H33: 96 | I33: 250 | J33: 01/01/2013 | L33: 12342
A34: =CONCATENATE(Table3[[#This Row],[State/Country]],"-",Table3[[#This Row],[Location]]," ( ",Table3[[#This Row],[Season Code]]," )") -> USA, Alaska-Eielson Afb ( 09/16-05/14 ) | B34: USA, Alaska | C34: Eielson Afb | D34: =CONCATENATE(Table3[[#This Row],[Season Begin]],"-",Table3[[#This Row],[Season End]]) -> 09/16-05/14 | E34: 09/16 | F34: 05/14 | G34: 75 | H34: 88 | I34: 163 | J34: 01/01/2013 | L34: 15065
A35: =CONCATENATE(Table3[[#This Row],[State/Country]],"-",Table3[[#This Row],[Location]]," ( ",Table3[[#This Row],[Season Code]]," )") -> USA, Alaska-Elfin Cove ( 05/15-09/10 ) | B35: USA, Alaska | C35: Elfin Cove | D35: =CONCATENATE(Table3[[#This Row],[Season Begin]],"-",Table3[[#This Row],[Season End]]) -> 05/15-09/10 | E35: 05/15 | F35: 09/10 | G35: 175 | H35: 46 | I35: 221 | J35: 01/01/2013 | L35: 13319
A36: =CONCATENATE(Table3[[#This Row],[State/Country]],"-",Table3[[#This Row],[Location]]," ( ",Table3[[#This Row],[Season Code]]," )") -> USA, Alaska-Elfin Cove ( 09/11-05/14 ) | B36: USA, Alaska | C36: Elfin Cove | D36: =CONCATENATE(Table3[[#This Row],[Season Begin]],"-",Table3[[#This Row],[Season End]]) -> 09/11-05/14 | E36: 09/11 | F36: 05/14 | G36: 150 | H36: 44 | I36: 194 | J36: 01/01/2013 | L36: 12372
A37: =CONCATENATE(Table3[[#This Row],[State/Country]],"-",Table3[[#This Row],[Location]]," ( ",Table3[[#This Row],[Season Code]]," )") -> USA, Alaska-Elmendorf Afb ( 05/16-09/30 ) | B37: USA, Alaska | C37: Elmendorf Afb | D37: =CONCATENATE(Table3[[#This Row],[Season Begin]],"-",Table3[[#This Row],[Season End]]) -> 05/16-09/30 | E37: 05/16 | F37: 09/30 | G37: 190 | H37: 102 | I37: 292 | J37: 12/01/2013 | L37: 10246
A38: =CONCATENATE(Table3[[#This Row],[State/Country]],"-",Table3[[#This Row],[Location]]," ( ",Table3[[#This Row],[Season Code]]," )") -> USA, Alaska-Elmendorf Afb ( 10/01-05/15 ) | B38: USA, Alaska | C38: Elmendorf Afb | D38: =CONCATENATE(Table3[[#This Row],[Season Begin]],"-",Table3[[#This Row],[Season End]]) -> 10/01-05/15 | E38: 10/01 | F38: 05/15 | G38: 99 | H38: 93 | I38: 192 | J38: 12/01/2013 | L38: 10247
A39: =CONCATENATE(Table3[[#This Row],[State/Country]],"-",Table3[[#This Row],[Location]]," ( ",Table3[[#This Row],[Season Code]]," )") -> USA, Alaska-Fairbanks ( 05/15-09/15 ) | B39: USA, Alaska | C39: Fairbanks | D39: =CONCATENATE(Table3[[#This Row],[Season Begin]],"-",Table3[[#This Row],[Season End]]) -> 05/15-09/15 | E39: 05/15 | F39: 09/15 | G39: 154 | H39: 96 | I39: 250 | J39: 01/01/2013 | L39: 13553
A40: =CONCATENATE(Table3[[#This Row],[State/Country]],"-",Table3[[#This Row],[Location]]," ( ",Table3[[#This Row],[Season Code]]," )") -> USA, Alaska-Fairbanks ( 09/16-05/14 ) | B40: USA, Alaska | C40: Fairbanks | D40: =CONCATENATE(Table3[[#This Row],[Season Begin]],"-",Table3[[#This Row],[Season End]]) -> 09/16-05/14 | E40: 09/16 | F40: 05/14 | G40: 75 | H40: 88 | I40: 163 | J40: 01/01/2013 | L40: 10248
A41: =CONCATENATE(Table3[[#This Row],[State/Country]],"-",Table3[[#This Row],[Location]]," ( ",Table3[[#This Row],[Season Code]]," )") -> USA, Alaska-Footloose ( 01/01-12/31 ) | B41: USA, Alaska | C41: Footloose | D41: =CONCATENATE(Table3[[#This Row],[Season Begin]],"-",Table3[[#This Row],[Season End]]) -> 01/01-12/31 | E41: 01/01 | F41: 12/31 | G41: 175 | H41: 18 | I41: 193 | J41: 10/01/2002 | L41: 11757
A42: =CONCATENATE(Table3[[#This Row],[State/Country]],"-",Table3[[#This Row],[Location]]," ( ",Table3[[#This Row],[Season Code]]," )") -> USA, Alaska-Ft. Greely ( 01/01-12/31 ) | B42: USA, Alaska | C42: Ft. Greely | D42: =CONCATENATE(Table3[[#This Row],[Season Begin]],"-",Table3[[#This Row],[Season End]]) -> 01/01-12/31 | E42: 01/01 | F42: 12/31 | G42: 128 | H42: 54 | I42: 182 | J42: 12/01/2013 | L42: 11985
A43: =CONCATENATE(Table3[[#This Row],[State/Country]],"-",Table3[[#This Row],[Location]]," ( ",Table3[[#This Row],[Season Code]]," )") -> USA, Alaska-Ft. Richardson ( 05/16-09/30 ) | B43: USA, Alaska | C43: Ft. Richardson | D43: =CONCATENATE(Table3[[#This Row],[Season Begin]],"-",Table3[[#This Row],[Season End]]) -> 05/16-09/30 | E43: 05/16 | F43: 09/30 | G43: 190 | H43: 102 | I43: 292 | J43: 12/01/2013 | L43: 11082
A44: =CONCATENATE(Table3[[#This Row],[State/Country]],"-",Table3[[#This Row],[Location]]," ( ",Table3[[#This Row],[Season Code]]," )") -> USA, Alaska-Ft. Richardson ( 10/01-05/15 ) | B44: USA, Alaska | C44: Ft. Richardson | D44: =CONCATENATE(Table3[[#This Row],[Season Begin]],"-",Table3[[#This Row],[Season End]]) -> 10/01-05/15 | E44: 10/01 | F44: 05/15 | G44: 99 | H44: 93 | I44: 192 | J44: 12/01/2013 | L44: 11410
A45: =CONCATENATE(Table3[[#This Row],[State/Country]],"-",Table3[[#This Row],[Location]]," ( ",Table3[[#This Row],[Season Code]]," )") -> USA, Alaska-Ft. Wainwright ( 05/15-09/15 ) | B45: USA, Alaska | C45: Ft. Wainwright | D45: =CONCATENATE(Table3[[#This Row],[Season Begin]],"-",Table3[[#This Row],[Season End]]) -> 05/15-09/15 | E45: 05/15 | F45: 09/15 | G45: 154 | H45: 96 | I45: 250 | J45: 01/01/2013 | L45: 10107
A46: =CONCATENATE(Table3[[#This Row],[State/Country]],"-",Table3[[#This Row],[Location]]," ( ",Table3[[#This Row],[Season Code]]," )") -> USA, Alaska-Ft. Wainwright ( 09/16-05/14 ) | B46: USA, Alaska | C46: Ft. Wainwright | D46: =CONCATENATE(Table3[[#This Row],[Season Begin]],"-",Table3[[#This Row],[Season End]]) -> 09/16-05/14 | E46: 09/16 | F46: 05/14 | G46: 75 | H46: 88 | I46: 163 | J46: 01/01/2013 | L46: 10106
A47: =CONCATENATE(Table3[[#This Row],[State/Country]],"-",Table3[[#This Row],[Location]]," ( ",Table3[[#This Row],[Season Code]]," )") -> USA, Alaska-Gambell ( 01/01-12/31 ) | B47: USA, Alaska | C47: Gambell | D47: =CONCATENATE(Table3[[#This Row],[Season Begin]],"-",Table3[[#This Row],[Season End]]) -> 01/01-12/31 | E47: 01/01 | F47: 12/31 | G47: 137 | H47: 59 | I47: 196 | J47: 06/01/2014 | L47: 11758
A48: =CONCATENATE(Table3[[#This Row],[State/Country]],"-",Table3[[#This Row],[Location]]," ( ",Table3[[#This Row],[Season Code]]," )") -> USA, Alaska-Glennallen ( 05/15-09/15 ) | B48: USA, Alaska | C48: Glennallen | D48: =CONCATENATE(Table3[[#This Row],[Season Begin]],"-",Table3[[#This Row],[Season End]]) -> 05/15-09/15 | E48: 05/15 | F48: 09/15 | G48: 149 | H48: 85 | I48: 234 | J48: 01/01/2013 | L48: 10109
A49: =CONCATENATE(Table3[[#This Row],[State/Country]],"-",Table3[[#This Row],[Location]]," ( ",Table3[[#This Row],[Season Code]]," )") -> USA, Alaska-Glennallen ( 09/16-05/14 ) | B49: USA, Alaska | C49: Glennallen | D49: =CONCATENATE(Table3[[#This Row],[Season Begin]],"-",Table3[[#This Row],[Season End]]) -> 09/16-05/14 | E49: 09/16 | F49: 05/14 | G49: 99 | H49: 80 | I49: 179 | J49: 01/01/2013 | L49: 19944
A50: =CONCATENATE(Table3[[#This Row],[State/Country]],"-",Table3[[#This Row],[Location]]," ( ",Table3[[#This Row],[Season Code]]," )") -> USA, Alaska-Haines ( 01/01-12/31 ) | B50: USA, Alaska | C50: Haines | D50: =CONCATENATE(Table3[[#This Row],[Season Begin]],"-",Table3[[#This Row],[Season End]]) -> 01/01-12/31 | E50: 01/01 | F50: 12/31 | G50: 107 | H50: 101 | I50: 208 | J50: 01/01/2011 | K50: 10 | L50: 11891
A51: =CONCATENATE(Table3[[#This Row],[State/Country]],"-",Table3[[#This Row],[Location]]," ( ",Table3[[#This Row],[Season Code]]," )") -> USA, Alaska-Healy ( 05/01-09/30 ) | B51: USA, Alaska | C51: Healy | D51: =CONCATENATE(Table3[[#This Row],[Season Begin]],"-",Table3[[#This Row],[Season End]]) -> 05/01-09/30 | E51: 05/01 | F51: 09/30 | G51: 159 | H51: 94 | I51: 253 | J51: 12/01/2013 | K51: 10 | L51: 11000
A52: =CONCATENATE(Table3[[#This Row],[State/Country]],"-",Table3[[#This Row],[Location]]," ( ",Table3[[#This Row],[Season Code]]," )") -> USA, Alaska-Healy ( 10/01-04/30 ) | B52: USA, Alaska | C52: Healy | D52: =CONCATENATE(Table3[[#This Row],[Season Begin]],"-",Table3[[#This Row],[Season End]]) -> 10/01-04/30 | E52: 10/01 | F52: 04/30 | G52: 89 | H52: 87 | I52: 176 | J52: 12/01/2013 | K52: 10 | L52: 11001
A53: =CONCATENATE(Table3[[#This Row],[State/Country]],"-",Table3[[#This Row],[Location]]," ( ",Table3[[#This Row],[Season Code]]," )") -> USA, Alaska-Homer ( 05/05-09/16 ) | B53: USA, Alaska | C53: Homer | D53: =CONCATENATE(Table3[[#This Row],[Season Begin]],"-",Table3[[#This Row],[Season End]]) -> 05/05-09/16 | E53: 05/05 | F53: 09/16 | G53: 159 | H53: 99 | I53: 258 | J53: 12/01/2013 | K53: 10 | L53: 11002
A54: =CONCATENATE(Table3[[#This Row],[State/Country]],"-",Table3[[#This Row],[Location]]," ( ",Table3[[#This Row],[Season Code]]," )") -> USA, Alaska-Homer ( 09/17-05/04 ) | B54: USA, Alaska | C54: Homer | D54: =CONCATENATE(Table3[[#This Row],[Season Begin]],"-",Table3[[#This Row],[Season End]]) -> 09/17-05/04 | E54: 09/17 | F54: 05/04 | G54: 89 | H54: 92 | I54: 181 | J54: 12/01/2013 | K54: 10 | L54: 10017
A55: =CONCATENATE(Table3[[#This Row],[State/Country]],"-",Table3[[#This Row],[Location]]," ( ",Table3[[#This Row],[Season Code]]," )") -> USA, Alaska-Juneau ( 05/16-09/15 ) | B55: USA, Alaska | C55: Juneau | D55: =CONCATENATE(Table3[[#This Row],[Season Begin]],"-",Table3[[#This Row],[Season End]]) -> 05/16-09/15 | E55: 05/16 | F55: 09/15 | G55: 159 | H55: 104 | I55: 263 | J55: 12/01/2013 | K55: 10 | L55: 10017
A56: =CONCATENATE(Table3[[#This Row],[State/Country]],"-",Table3[[#This Row],[Location]]," ( ",Table3[[#This Row],[Season Code]]," )") -> USA, Alaska-Juneau ( 09/16-05/15 ) | B56: USA, Alaska | C56: Juneau | D56: =CONCATENATE(Table3[[#This Row],[Season Begin]],"-",Table3[[#This Row],[Season End]]) -> 09/16-05/15 | E56: 09/16 | F56: 05/15 | G56: 135 | H56: 102 | I56: 237 | J56: 12/01/2013 | K56: 19,2 | L56: 11054
A57: =CONCATENATE(Table3[[#This Row],[State/Country]],"-",Table3[[#This Row],[Location]]," ( ",Table3[[#This Row],[Season Code]]," )") -> USA, Alaska-Kaktovik ( 01/01-12/31 ) | B57: USA, Alaska | C57: Kaktovik | D57: =CONCATENATE(Table3[[#This Row],[Season Begin]],"-",Table3[[#This Row],[Season End]]) -> 01/01-12/31 | E57: 01/01 | F57: 12/31 | G57: 165 | H57: 86 | I57: 251 | J57: 10/01/2002 | L57: 11807
A58: =CONCATENATE(Table3[[#This Row],[State/Country]],"-",Table3[[#This Row],[Location]]," ( ",Table3[[#This Row],[Season Code]]," )") -> USA, Alaska-Kavik Camp ( 01/01-12/31 ) | B58: USA, Alaska | C58: Kavik Camp | D58: =CONCATENATE(Table3[[#This Row],[Season Begin]],"-",Table3[[#This Row],[Season End]]) -> 01/01-12/31 | E58: 01/01 | F58: 12/31 | G58: 200 | H58: 65 | I58: 265 | J58: 06/01/2014 | L58: 11986
A59: =CONCATENATE(Table3[[#This Row],[State/Country]],"-",Table3[[#This Row],[Location]]," ( ",Table3[[#This Row],[Season Code]]," )") -> USA, Alaska-Kenai-Soldotna ( 05/01-10/31 ) | B59: USA, Alaska | C59: Kenai-Soldotna | D59: =CONCATENATE(Table3[[#This Row],[Season Begin]],"-",Table3[[#This Row],[Season End]]) -> 05/01-10/31 | E59: 05/01 | F59: 10/31 | G59: 99 | H59: 110 | I59: 209 | J59: 01/01/2013 | L59: 10327
A60: =CONCATENATE(Table3[[#This Row],[State/Country]],"-",Table3[[#This Row],[Location]]," ( ",Table3[[#This Row],[Season Code]]," )") -> USA, Alaska-Kenai-Soldotna ( 11/01-04/30 ) | B60: USA, Alaska | C60: Kenai-Soldotna | D60: =CONCATENATE(Table3[[#This Row],[Season Begin]],"-",Table3[[#This Row],[Season End]]) -> 11/01-04/30 | E60: 11/01 | F60: 04/30 | G60: 79 | H60: 108 | I60: 187 | J60: 01/01/2013 | L60: 15021
A61: =CONCATENATE(Table3[[#This Row],[State/Country]],"-",Table3[[#This Row],[Location]]," ( ",Table3[[#This Row],[Season Code]]," )") -> USA, Alaska-Kennicott ( 01/01-12/31 ) | B61: USA, Alaska | C61: Kennicott | D61: =CONCATENATE(Table3[[#This Row],[Season Begin]],"-",Table3[[#This Row],[Season End]]) -> 01/01-12/31 | E61: 01/01 | F61: 12/31 | G61: 275 | H61: 109 | I61: 384 | J61: 01/01/2013 | L61: 11055
A62: =CONCATENATE(Table3[[#This Row],[State/Country]],"-",Table3[[#This Row],[Location]]," ( ",Table3[[#This Row],[Season Code]]," )") -> USA, Alaska-Ketchikan ( 05/01-09/30 ) | B62: USA, Alaska | C62: Ketchikan | D62: =CONCATENATE(Table3[[#This Row],[Season Begin]],"-",Table3[[#This Row],[Season End]]) -> 05/01-09/30 | E62: 05/01 | F62: 09/30 | G62: 135 | H62: 88 | I62: 223 | J62: 01/01/2013 | L62: 11055
A63: =CONCATENATE(Table3[[#This Row],[State/Country]],"-",Table3[[#This Row],[Location]]," ( ",Table3[[#This Row],[Season Code]]," )") -> USA, Alaska-Ketchikan ( 10/01-04/30 ) | B63: USA, Alaska | C63: Ketchikan | D63: =CONCATENATE(Table3[[#This Row],[Season Begin]],"-",Table3[[#This Row],[Season End]]) -> 10/01-04/30 | E63: 10/01 | F63: 04/30 | G63: 99 | H63: 85 | I63: 184 | J63: 01/01/2013 | L63: 11904
A64: =CONCATENATE(Table3[[#This Row],[State/Country]],"-",Table3[[#This Row],[Location]]," ( ",Table3[[#This Row],[Season Code]]," )") -> USA, Alaska-King Salmon ( 05/01-10/01 ) | B64: USA, Alaska | C64: King Salmon | D64: =CONCATENATE(Table3[[#This Row],[Season Begin]],"-",Table3[[#This Row],[Season End]]) -> 05/01-10/01 | E64: 05/01 | F64: 10/01 | G64: 225 | H64: 91 | I64: 316 | J64: 10/01/2002 | L64: 10822
A65: =CONCATENATE(Table3[[#This Row],[State/Country]],"-",Table3[[#This Row],[Location]]," ( ",Table3[[#This Row],[Season Code]]," )") -> USA, Alaska-King Salmon ( 10/02-04/30 ) | B65: USA, Alaska | C65: King Salmon | D65: =CONCATENATE(Table3[[#This Row],[Season Begin]],"-",Table3[[#This Row],[Season End]]) -> 10/02-04/30 | E65: 10/02 | F65: 04/30 | G65: 125 | H65: 81 | I65: 206 | J65: 10/01/2002 | L65: 11760
A66: =CONCATENATE(Table3[[#This Row],[State/Country]],"-",Table3[[#This Row],[Location]]," ( ",Table3[[#This Row],[Season Code]]," )") -> USA, Alaska-Klawock ( 04/01-09/30 ) | B66: USA, Alaska | C66: Klawock | D66: =CONCATENATE(Table3[[#This Row],[Season Begin]],"-",Table3[[#This Row],[Season End]]) -> 04/01-09/30 | E66: 04/01 | F66: 09/30 | G66: 129 | H66: 77 | I66: 206 | J66: 06/01/2014 | L66: 10112
A67: =CONCATENATE(Table3[[#This Row],[State/Country]],"-",Table3[[#This Row],[Location]]," ( ",Table3[[#This Row],[Season Code]]," )") -> USA, Alaska-Klawock ( 10/01-03/31 ) | B67: USA, Alaska | C67: Klawock | D67: =CONCATENATE(Table3[[#This Row],[Season Begin]],"-",Table3[[#This Row],[Season End]]) -> 10/01-03/31 | E67: 10/01 | F67: 03/31 | G67: 85 | H67: 72 | I67: =G67+H67 -> 157 | J67: 06/01/2014 | L67: 12125
A68: =CONCATENATE(Table3[[#This Row],[State/Country]],"-",Table3[[#This Row],[Location]]," ( ",Table3[[#This Row],[Season Code]]," )") -> USA, Alaska-Kodiak ( 05/01-09/30 ) | B68: USA, Alaska | C68: Kodiak | D68: =CONCATENATE(Table3[[#This Row],[Season Begin]],"-",Table3[[#This Row],[Season End]]) -> 05/01-09/30 | E68: 05/01 | F68: 09/30 | G68: 152 | H68: 93 | I68: 245 | J68: 02/01/2012 | L68: 10111
A69: =CONCATENATE(Table3[[#This Row],[State/Country]],"-",Table3[[#This Row],[Location]]," ( ",Table3[[#This Row],[Season Code]]," )") -> USA, Alaska-Kodiak ( 10/01-04/30 ) | B69: USA, Alaska | C69: Kodiak | D69: =CONCATENATE(Table3[[#This Row],[Season Begin]],"-",Table3[[#This Row],[Season End]]) -> 10/01-04/30 | E69: 10/01 | F69: 04/30 | G69: 100 | H69: 88 | I69: 188 | J69: 02/01/2012 | L69: 11087
A70: =CONCATENATE(Table3[[#This Row],[State/Country]],"-",Table3[[#This Row],[Location]]," ( ",Table3[[#This Row],[Season Code]]," )") -> USA, Alaska-Kotzebue ( 01/01-12/31 ) | B70: USA, Alaska | C70: Kotzebue | D70: =CONCATENATE(Table3[[#This Row],[Season Begin]],"-",Table3[[#This Row],[Season End]]) -> 01/01-12/31 | E70: 01/01 | F70: 12/31 | G70: 219 | H70: 115 | I70: 334 | J70: 02/01/2012 | L70: 10819
A71: =CONCATENATE(Table3[[#This Row],[State/Country]],"-",Table3[[#This Row],[Location]]," ( ",Table3[[#This Row],[Season Code]]," )") -> USA, Alaska-Kulis Ags ( 05/16-09/30 ) | B71: USA, Alaska | C71: Kulis Ags | D71: =CONCATENATE(Table3[[#This Row],[Season Begin]],"-",Table3[[#This Row],[Season End]]) -> 05/16-09/30 | E71: 05/16 | F71: 09/30 | G71: 190 | H71: 102 | I71: 292 | J71: 12/01/2013 | L71: 11091
A72: =CONCATENATE(Table3[[#This Row],[State/Country]],"-",Table3[[#This Row],[Location]]," ( ",Table3[[#This Row],[Season Code]]," )") -> USA, Alaska-Kulis Ags ( 10/01-05/15 ) | B72: USA, Alaska | C72: Kulis Ags | D72: =CONCATENATE(Table3[[#This Row],[Season Begin]],"-",Table3[[#This Row],[Season End]]) -> 10/01-05/15 | E72: 10/01 | F72: 05/15 | G72: 99 | H72: 93 | I72: 192 | J72: 12/01/2013 | L72: 10820
A73: =CONCATENATE(Table3[[#This Row],[State/Country]],"-",Table3[[#This Row],[Location]]," ( ",Table3[[#This Row],[Season Code]]," )") -> USA, Alaska-Mccarthy ( 01/01-12/31 ) | B73: USA, Alaska | C73: Mccarthy | D73: =CONCATENATE(Table3[[#This Row],[Season Begin]],"-",Table3[[#This Row],[Season End]]) -> 01/01-12/31 | E73: 01/01 | F73: 12/31 | G73: 275 | H73: 109 | I73: 384 | J73: 01/01/2013 | L73: 11093
A74: =CONCATENATE(Table3[[#This Row],[State/Country]],"-",Table3[[#This Row],[Location]]," ( ",Table3[[#This Row],[Season Code]]," )") -> USA, Alaska-Mcgrath ( 01/01-12/31 ) | B74: USA, Alaska | C74: Mcgrath | D74: =CONCATENATE(Table3[[#This Row],[Season Begin]],"-",Table3[[#This Row],[Season End]]) -> 01/01-12/31 | E74: 01/01 | F74: 12/31 | G74: 160 | H74: 82 | I74: 242 | J74: 07/01/2014 | L74: 11742
A75: =CONCATENATE(Table3[[#This Row],[State/Country]],"-",Table3[[#This Row],[Location]]," ( ",Table3[[#This Row],[Season Code]]," )") -> USA, Alaska-Murphy Dome ( 05/15-09/15 ) | B75: USA, Alaska | C75: Murphy Dome | D75: =CONCATENATE(Table3[[#This Row],[Season Begin]],"-",Table3[[#This Row],[Season End]]) -> 05/15-09/15 | E75: 05/15 | F75: 09/15 | G75: 154 | H75: 96 | I75: 250 | J75: 01/01/2013 | L75: 10049
A76: =CONCATENATE(Table3[[#This Row],[State/Country]],"-",Table3[[#This Row],[Location]]," ( ",Table3[[#This Row],[Season Code]]," )") -> USA, Alaska-Murphy Dome ( 09/16-05/14 ) | B76: USA, Alaska | C76: Murphy Dome | D76: =CONCATENATE(Table3[[#This Row],[Season Begin]],"-",Table3[[#This Row],[Season End]]) -> 09/16-05/14 | E76: 09/16 | F76: 05/14 | G76: 75 | H76: 88 | I76: 163 | J76: 01/01/2013 | L76: 13643
A77: =CONCATENATE(Table3[[#This Row],[State/Country]],"-",Table3[[#This Row],[Location]]," ( ",Table3[[#This Row],[Season Code]]," )") -> USA, Alaska-Nome ( 01/01-12/31 ) | B77: USA, Alaska | C77: Nome | D77: =CONCATENATE(Table3[[#This Row],[Season Begin]],"-",Table3[[#This Row],[Season End]]) -> 01/01-12/31 | E77: 01/01 | F77: 12/31 | G77: 150 | H77: 132 | I77: 282 | J77: 01/01/2013 | L77: 15018
A78: =CONCATENATE(Table3[[#This Row],[State/Country]],"-",Table3[[#This Row],[Location]]," ( ",Table3[[#This Row],[Season Code]]," )") -> USA, Alaska-Nuiqsut ( 01/01-12/31 ) | B78: USA, Alaska | C78: Nuiqsut | D78: =CONCATENATE(Table3[[#This Row],[Season Begin]],"-",Table3[[#This Row],[Season End]]) -> 01/01-12/31 | E78: 01/01 | F78: 12/31 | G78: 250 | H78: 70 | I78: 320 | J78: 07/01/2014 | L78: 11831
A79: =CONCATENATE(Table3[[#This Row],[State/Country]],"-",Table3[[#This Row],[Location]]," ( ",Table3[[#This Row],[Season Code]]," )") -> USA, Alaska-Petersburg ( 01/01-12/31 ) | B79: USA, Alaska | C79: Petersburg | D79: =CONCATENATE(Table3[[#This Row],[Season Begin]],"-",Table3[[#This Row],[Season End]]) -> 01/01-12/31 | E79: 01/01 | F79: 12/31 | G79: 110 | H79: 118 | I79: 228 | J79: 01/01/2013 | L79: 10386
A80: =CONCATENATE(Table3[[#This Row],[State/Country]],"-",Table3[[#This Row],[Location]]," ( ",Table3[[#This Row],[Season Code]]," )") -> USA, Alaska-Point Hope ( 01/01-12/31 ) | B80: USA, Alaska | C80: Point Hope | D80: =CONCATENATE(Table3[[#This Row],[Season Begin]],"-",Table3[[#This Row],[Season End]]) -> 01/01-12/31 | E80: 01/01 | F80: 12/31 | G80: 181 | H80: 81 | I80: 262 | J80: 06/01/2014 | L80: 11963
A81: =CONCATENATE(Table3[[#This Row],[State/Country]],"-",Table3[[#This Row],[Location]]," ( ",Table3[[#This Row],[Season Code]]," )") -> USA, Alaska-Point Lay ( 01/01-12/31 ) | B81: USA, Alaska | C81: Point Lay | D81: =CONCATENATE(Table3[[#This Row],[Season Begin]],"-",Table3[[#This Row],[Season End]]) -> 01/01-12/31 | E81: 01/01 | F81: 12/31 | G81: 265 | H81: 72 | I81: 337 | J81: 07/01/2014 | L81: 11963
A82: =CONCATENATE(Table3[[#This Row],[State/Country]],"-",Table3[[#This Row],[Location]]," ( ",Table3[[#This Row],[Season Code]]," )") -> USA, Alaska-Port Alexander ( 01/01-12/31 ) | B82: USA, Alaska | C82: Port Alexander | D82: =CONCATENATE(Table3[[#This Row],[Season Begin]],"-",Table3[[#This Row],[Season End]]) -> 01/01-12/31 | E82: 01/01 | F82: 12/31 | G82: 150 | H82: 43 | I82: 193 | J82: 08/01/2010 | L82: 11094
A83: =CONCATENATE(Table3[[#This Row],[State/Country]],"-",Table3[[#This Row],[Location]]," ( ",Table3[[#This Row],[Season Code]]," )") -> USA, Alaska-Port Alsworth ( 01/01-12/31 ) | B83: USA, Alaska | C83: Port Alsworth | D83: =CONCATENATE(Table3[[#This Row],[Season Begin]],"-",Table3[[#This Row],[Season End]]) -> 01/01-12/31 | E83: 01/01 | F83: 12/31 | G83: 135 | H83: 88 | I83: 223 | J83: 10/01/2002 | L83: 11738
A84: =CONCATENATE(Table3[[#This Row],[State/Country]],"-",Table3[[#This Row],[Location]]," ( ",Table3[[#This Row],[Season Code]]," )") -> USA, Alaska-Prudhoe Bay ( 01/01-12/31 ) | B84: USA, Alaska | C84: Prudhoe Bay | D84: =CONCATENATE(Table3[[#This Row],[Season Begin]],"-",Table3[[#This Row],[Season End]]) -> 01/01-12/31 | E84: 01/01 | F84: 12/31 | G84: 170 | H84: 70 | I84: 240 | J84: 05/01/2014 | L84: 10019
A85: =CONCATENATE(Table3[[#This Row],[State/Country]],"-",Table3[[#This Row],[Location]]," ( ",Table3[[#This Row],[Season Code]]," )") -> USA, Alaska-Seldovia ( 05/05-09/16 ) | B85: USA, Alaska | C85: Seldovia | D85: =CONCATENATE(Table3[[#This Row],[Season Begin]],"-",Table3[[#This Row],[Season End]]) -> 05/05-09/16 | E85: 05/05 | F85: 09/16 | G85: 159 | H85: 99 | I85: 258 | J85: 12/01/2013 | L85: 10018
A86: =CONCATENATE(Table3[[#This Row],[State/Country]],"-",Table3[[#This Row],[Location]]," ( ",Table3[[#This Row],[Season Code]]," )") -> USA, Alaska-Seldovia ( 09/17-05/04 ) | B86: USA, Alaska | C86: Seldovia | D86: =CONCATENATE(Table3[[#This Row],[Season Begin]],"-",Table3[[#This Row],[Season End]]) -> 09/17-05/04 | E86: 09/17 | F86: 05/04 | G86: 89 | H86: 92 | I86: 181 | J86: 12/01/2013 | L86: 10435
A87: =CONCATENATE(Table3[[#This Row],[State/Country]],"-",Table3[[#This Row],[Location]]," ( ",Table3[[#This Row],[Season Code]]," )") -> USA, Alaska-Seward ( 05/01-10/15 ) | B87: USA, Alaska | C87: Seward | D87: =CONCATENATE(Table3[[#This Row],[Season Begin]],"-",Table3[[#This Row],[Season End]]) -> 05/01-10/15 | E87: 05/01 | F87: 10/15 | G87: 174 | H87: 94 | I87: 268 | J87: 01/01/2013 | L87: 11915
A88: =CONCATENATE(Table3[[#This Row],[State/Country]],"-",Table3[[#This Row],[Location]]," ( ",Table3[[#This Row],[Season Code]]," )") -> USA, Alaska-Seward ( 10/16-04/30 ) | B88: USA, Alaska | C88: Seward | D88: =CONCATENATE(Table3[[#This Row],[Season Begin]],"-",Table3[[#This Row],[Season End]]) -> 10/16-04/30 | E88: 10/16 | F88: 04/30 | G88: 84 | H88: 85 | I88: 169 | J88: 01/01/2013 | L88: 11043
A89: =CONCATENATE(Table3[[#This Row],[State/Country]],"-",Table3[[#This Row],[Location]]," ( ",Table3[[#This Row],[Season Code]]," )") -> USA, Alaska-Sitka-Mt. Edgecumbe ( 05/01-09/30 ) | B89: USA, Alaska | C89: Sitka-Mt. Edgecumbe | D89: =CONCATENATE(Table3[[#This Row],[Season Begin]],"-",Table3[[#This Row],[Season End]]) -> 05/01-09/30 | E89: 05/01 | F89: 09/30 | G89: 209 | H89: 117 | I89: 326 | J89: 01/01/2013 | L89: 11824
A90: =CONCATENATE(Table3[[#This Row],[State/Country]],"-",Table3[[#This Row],[Location]]," ( ",Table3[[#This Row],[Season Code]]," )") -> USA, Alaska-Sitka-Mt. Edgecumbe ( 10/01-04/30 ) | B90: USA, Alaska | C90: Sitka-Mt. Edgecumbe | D90: =CONCATENATE(Table3[[#This Row],[Season Begin]],"-",Table3[[#This Row],[Season End]]) -> 10/01-04/30 | E90: 10/01 | F90: 04/30 | G90: 169 | H90: 113 | I90: 282 | J90: 01/01/2013 | L90: 12578
A91: =CONCATENATE(Table3[[#This Row],[State/Country]],"-",Table3[[#This Row],[Location]]," ( ",Table3[[#This Row],[Season Code]]," )") -> USA, Alaska-Skagway ( 05/01-09/30 ) | B91: USA, Alaska | C91: Skagway | D91: =CONCATENATE(Table3[[#This Row],[Season Begin]],"-",Table3[[#This Row],[Season End]]) -> 05/01-09/30 | E91: 05/01 | F91: 09/30 | G91: 135 | H91: 88 | I91: 223 | J91: 01/01/2013 | L91: 10377
A92: =CONCATENATE(Table3[[#This Row],[State/Country]],"-",Table3[[#This Row],[Location]]," ( ",Table3[[#This Row],[Season Code]]," )") -> USA, Alaska-Skagway ( 10/01-04/30 ) | B92: USA, Alaska | C92: Skagway | D92: =CONCATENATE(Table3[[#This Row],[Season Begin]],"-",Table3[[#This Row],[Season End]]) -> 10/01-04/30 | E92: 10/01 | F92: 04/30 | G92: 99 | H92: 85 | I92: 184 | J92: 01/01/2013 | L92: 12390
A93: =CONCATENATE(Table3[[#This Row],[State/Country]],"-",Table3[[#This Row],[Location]]," ( ",Table3[[#This Row],[Season Code]]," )") -> USA, Alaska-Slana ( 05/01-09/30 ) | B93: USA, Alaska | C93: Slana | D93: =CONCATENATE(Table3[[#This Row],[Season Begin]],"-",Table3[[#This Row],[Season End]]) -> 05/01-09/30 | E93: 05/01 | F93: 09/30 | G93: 139 | H93: 55 | I93: 194 | J93: 02/01/2005 | L93: 10728
A94: =CONCATENATE(Table3[[#This Row],[State/Country]],"-",Table3[[#This Row],[Location]]," ( ",Table3[[#This Row],[Season Code]]," )") -> USA, Alaska-Slana ( 10/01-04/30 ) | B94: USA, Alaska | C94: Slana | D94: =CONCATENATE(Table3[[#This Row],[Season Begin]],"-",Table3[[#This Row],[Season End]]) -> 10/01-04/30 | E94: 10/01 | F94: 04/30 | G94: 99 | H94: 55 | I94: 154 | J94: 02/01/2005 | L94: 12078
A95: =CONCATENATE(Table3[[#This Row],[State/Country]],"-",Table3[[#This Row],[Location]]," ( ",Table3[[#This Row],[Season Code]]," )") -> USA, Alaska-Spruce Cape ( 05/01-09/30 ) | B95: USA, Alaska | C95: Spruce Cape | D95: =CONCATENATE(Table3[[#This Row],[Season Begin]],"-",Table3[[#This Row],[Season End]]) -> 05/01-09/30 | E95: 05/01 | F95: 09/30 | G95: 152 | H95: 93 | I95: 245 | J95: 02/01/2012 | L95: 11098
A96: =CONCATENATE(Table3[[#This Row],[State/Country]],"-",Table3[[#This Row],[Location]]," ( ",Table3[[#This Row],[Season Code]]," )") -> USA, Alaska-Spruce Cape ( 10/01-04/30 ) | B96: USA, Alaska | C96: Spruce Cape | D96: =CONCATENATE(Table3[[#This Row],[Season Begin]],"-",Table3[[#This Row],[Season End]]) -> 10/01-04/30 | E96: 10/01 | F96: 04/30 | G96: 100 | H96: 88 | I96: 188 | J96: 02/01/2012 | L96: 10023
A97: =CONCATENATE(Table3[[#This Row],[State/Country]],"-",Table3[[#This Row],[Location]]," ( ",Table3[[#This Row],[Season Code]]," )") -> USA, Alaska-St. George ( 01/01-12/31 ) | B97: USA, Alaska | C97: St. George | D97: =CONCATENATE(Table3[[#This Row],[Season Begin]],"-",Table3[[#This Row],[Season End]]) -> 01/01-12/31 | E97: 01/01 | F97: 12/31 | G97: 220 | H97: 51 | I97: 271 | J97: 05/01/2014 | L97: 10022
A98: =CONCATENATE(Table3[[#This Row],[State/Country]],"-",Table3[[#This Row],[Location]]," ( ",Table3[[#This Row],[Season Code]]," )") -> USA, Alaska-Talkeetna ( 01/01-12/31 ) | B98: USA, Alaska | C98: Talkeetna | D98: =CONCATENATE(Table3[[#This Row],[Season Begin]],"-",Table3[[#This Row],[Season End]]) -> 01/01-12/31 | E98: 01/01 | F98: 12/31 | G98: 100 | H98: 89 | I98: 189 | J98: 10/01/2002 | L98: 11004
A99: =CONCATENATE(Table3[[#This Row],[State/Country]],"-",Table3[[#This Row],[Location]]," ( ",Table3[[#This Row],[Season Code]]," )") -> USA, Alaska-Tanana ( 01/01-12/31 ) | B99: USA, Alaska | C99: Tanana | D99: =CONCATENATE(Table3[[#This Row],[Season Begin]],"-",Table3[[#This Row],[Season End]]) -> 01/01-12/31 | E99: 01/01 | F99: 12/31 | G99: 150 | H99: 132 | I99: 282 | J99: 01/01/2013 | L99: 11102
A100: =CONCATENATE(Table3[[#This Row],[State/Country]],"-",Table3[[#This Row],[Location]]," ( ",Table3[[#This Row],[Season Code]]," )") -> USA, Alaska-Tok ( 05/15-09/30 ) | B100: USA, Alaska | C100: Tok | D100: =CONCATENATE(Table3[[#This Row],[Season Begin]],"-",Table3[[#This Row],[Season End]]) -> 05/15-09/30 | E100: 05/15 | F100: 09/30 | G100: 95 | H100: 85 | I100: 180 | J100: 01/01/2013 | L100: 11103
A101: =CONCATENATE(Table3[[#This Row],[State/Country]],"-",Table3[[#This Row],[Location]]," ( ",Table3[[#This Row],[Season Code]]," )") -> USA, Alaska-Tok ( 10/01-05/14 ) | B101: USA, Alaska | C101: Tok | D101: =CONCATENATE(Table3[[#This Row],[Season Begin]],"-",Table3[[#This Row],[Season End]]) -> 10/01-05/14 | E101: 10/01 | F101: 05/14 | G101: 85 | H101: 84 | I101: 169 | J101: 01/01/2013 | L101: 11105
A102: =CONCATENATE(Table3[[#This Row],[State/Country]],"-",Table3[[#This Row],[Location]]," ( ",Table3[[#This Row],[Season Code]]," )") -> USA, Alaska-Umiat ( 01/01-12/31 ) | B102: USA, Alaska | C102: Umiat | D102: =CONCATENATE(Table3[[#This Row],[Season Begin]],"-",Table3[[#This Row],[Season End]]) -> 01/01-12/31 | E102: 01/01 | F102: 12/31 | G102: 350 | H102: 64 | I102: 414 | J102: 02/01/2012 | L102: 11106
A103: =CONCATENATE(Table3[[#This Row],[State/Country]],"-",Table3[[#This Row],[Location]]," ( ",Table3[[#This Row],[Season Code]]," )") -> USA, Alaska-Valdez ( 05/16-09/14 ) | B103: USA, Alaska | C103: Valdez | D103: =CONCATENATE(Table3[[#This Row],[Season Begin]],"-",Table3[[#This Row],[Season End]]) -> 05/16-09/14 | E103: 05/16 | F103: 09/14 | G103: 219 | H103: 121 | I103: 340 | J103: 01/01/2013 | L103: 10029
A104: =CONCATENATE(Table3[[#This Row],[State/Country]],"-",Table3[[#This Row],[Location]]," ( ",Table3[[#This Row],[Season Code]]," )") -> USA, Alaska-Valdez ( 09/15-05/15 ) | B104: USA, Alaska | C104: Valdez | D104: =CONCATENATE(Table3[[#This Row],[Season Begin]],"-",Table3[[#This Row],[Season End]]) -> 09/15-05/15 | E104: 09/15 | F104: 05/15 | G104: 139 | H104: 113 | I104: 252 | J104: 01/01/2013 | L104: 15062
A105: =CONCATENATE(Table3[[#This Row],[State/Country]],"-",Table3[[#This Row],[Location]]," ( ",Table3[[#This Row],[Season Code]]," )") -> USA, Alaska-Wainwright ( 01/01-12/31 ) | B105: USA, Alaska | C105: Wainwright | D105: =CONCATENATE(Table3[[#This Row],[Season Begin]],"-",Table3[[#This Row],[Season End]]) -> 01/01-12/31 | E105: 01/01 | F105: 12/31 | G105: 175 | H105: 83 | I105: 258 | J105: 01/01/2011 | L105: 10030
A106: =CONCATENATE(Table3[[#This Row],[State/Country]],"-",Table3[[#This Row],[Location]]," ( ",Table3[[#This Row],[Season Code]]," )") -> USA, Alaska-Wasilla ( 05/01-09/30 ) | B106: USA, Alaska | C106: Wasilla | D106: =CONCATENATE(Table3[[#This Row],[Season Begin]],"-",Table3[[#This Row],[Season End]]) -> 05/01-09/30 | E106: 05/01 | F106: 09/30 | G106: 164 | H106: 103 | I106: 267 | J106: 01/01/2013 | K106: 32 | L106: 10031
A107: =CONCATENATE(Table3[[#This Row],[State/Country]],"-",Table3[[#This Row],[Location]]," ( ",Table3[[#This Row],[Season Code]]," )") -> USA, Alaska-Wasilla ( 10/01-04/30 ) | B107: USA, Alaska | C107: Wasilla | D107: =CONCATENATE(Table3[[#This Row],[Season Begin]],"-",Table3[[#This Row],[Season End]]) -> 10/01-04/30 | E107: 10/01 | F107: 04/30 | G107: 96 | H107: 96 | I107: 192 | J107: 01/01/2013 | L107: 11108
A108: =CONCATENATE(Table3[[#This Row],[State/Country]],"-",Table3[[#This Row],[Location]]," ( ",Table3[[#This Row],[Season Code]]," )") -> USA, Alaska-Wrangell ( 05/01-09/30 ) | B108: USA, Alaska | C108: Wrangell | D108: =CONCATENATE(Table3[[#This Row],[Season Begin]],"-",Table3[[#This Row],[Season End]]) -> 05/01-09/30 | E108: 05/01 | F108: 09/30 | G108: 135 | H108: 88 | I108: 223 | J108: 01/01/2013 | K108: 30 | L108: 10033
A109: =CONCATENATE(Table3[[#This Row],[State/Country]],"-",Table3[[#This Row],[Location]]," ( ",Table3[[#This Row],[Season Code]]," )") -> USA, Alaska-Wrangell ( 10/01-04/30 ) | B109: USA, Alaska | C109: Wrangell | D109: =CONCATENATE(Table3[[#This Row],[Season Begin]],"-",Table3[[#This Row],[Season End]]) -> 10/01-04/30 | E109: 10/01 | F109: 04/30 | G109: 99 | H109: 85 | I109: 184 | J109: 01/01/2013 | L109: 11788
A110: =CONCATENATE(Table3[[#This Row],[State/Country]],"-",Table3[[#This Row],[Location]]," ( ",Table3[[#This Row],[Season Code]]," )") -> USA, Alaska-Yakutat ( 01/01-12/31 ) | B110: USA, Alaska | C110: Yakutat | D110: =CONCATENATE(Table3[[#This Row],[Season Begin]],"-",Table3[[#This Row],[Season End]]) -> 01/01-12/31 | E110: 01/01 | F110: 12/31 | G110: 105 | H110: 94 | I110: 199 | J110: 01/01/2011 | L110: 10250
A111: =CONCATENATE(Table3[[#This Row],[State/Country]],"-",Table3[[#This Row],[Location]]," ( ",Table3[[#This Row],[Season Code]]," )") -> USA, Alaska-[Other] ( 01/01-12/31 ) | B111: USA, Alaska | C111: [Other] | D111: =CONCATENATE(Table3[[#This Row],[Season Begin]],"-",Table3[[#This Row],[Season End]]) -> 01/01-12/31 | E111: 01/01 | F111: 12/31 | G111: 110 | H111: 118 | I111: 228 | J111: 01/01/2013 | L111: 19980
A112: =CONCATENATE(Table3[[#This Row],[State/Country]],"-",Table3[[#This Row],[Location]]," ( ",Table3[[#This Row],[Season Code]]," )") -> Albania-Tirana ( 01/01-12/31 ) | B112: Albania | C112: Tirana | D112: =CONCATENATE(Table3[[#This Row],[Season Begin]],"-",Table3[[#This Row],[Season End]]) -> 01/01-12/31 | E112: 01/01 | F112: 12/31 | G112: 190 | H112: 98 | I112: 288 | J112: 07/01/2014 | L112: 11762
A113: =CONCATENATE(Table3[[#This Row],[State/Country]],"-",Table3[[#This Row],[Location]]," ( ",Table3[[#This Row],[Season Code]]," )") -> Albania-[Other] ( 01/01-12/31 ) | B113: Albania | C113: [Other] | D113: =CONCATENATE(Table3[[#This Row],[Season Begin]],"-",Table3[[#This Row],[Season End]]) -> 01/01-12/31 | E113: 01/01 | F113: 12/31 | G113: 97 | H113: 44 | I113: 141 | J113: 07/01/2014 | L113: 12220
A114: =CONCATENATE(Table3[[#This Row],[State/Country]],"-",Table3[[#This Row],[Location]]," ( ",Table3[[#This Row],[Season Code]]," )") -> Algeria-Algiers ( 01/01-12/31 ) | B114: Algeria | C114: Algiers | D114: =CONCATENATE(Table3[[#This Row],[Season Begin]],"-",Table3[[#This Row],[Season End]]) -> 01/01-12/31 | E114: 01/01 | F114: 12/31 | G114: 263 | H114: 109 | I114: 372 | J114: 02/01/2014 | L114: 12216
A115: =CONCATENATE(Table3[[#This Row],[State/Country]],"-",Table3[[#This Row],[Location]]," ( ",Table3[[#This Row],[Season Code]]," )") -> Algeria-[Other] ( 01/01-12/31 ) | B115: Algeria | C115: [Other] | D115: =CONCATENATE(Table3[[#This Row],[Season Begin]],"-",Table3[[#This Row],[Season End]]) -> 01/01-12/31 | E115: 01/01 | F115: 12/31 | G115: 174 | H115: 81 | I115: 255 | J115: 01/01/2006 | L115: 10115
A116: =CONCATENATE(Table3[[#This Row],[State/Country]],"-",Table3[[#This Row],[Location]]," ( ",Table3[[#This Row],[Season Code]]," )") -> All Places Not Listed-All Places Not Listed ( 01/01-12/31 ) | B116: All Places Not Listed | C116: All Places Not Listed | D116: =CONCATENATE(Table3[[#This Row],[Season Begin]],"-",Table3[[#This Row],[Season End]]) -> 01/01-12/31 | E116: 01/01 | F116: 12/31 | G116: 35 | H116: 20 | I116: 55 | J116: 10/01/2007 | L116: 12219
A117: =CONCATENATE(Table3[[#This Row],[State/Country]],"-",Table3[[#This Row],[Location]]," ( ",Table3[[#This Row],[Season Code]]," )") -> American Samoa-American Samoa ( 01/01-12/31 ) | B117: American Samoa | C117: American Samoa | D117: =CONCATENATE(Table3[[#This Row],[Season Begin]],"-",Table3[[#This Row],[Season End]]) -> 01/01-12/31 | E117: 01/01 | F117: 12/31 | G117: 139 | H117: 96 | I117: 235 | J117: 09/01/2012 | L117: 11854
A118: =CONCATENATE(Table3[[#This Row],[State/Country]],"-",Table3[[#This Row],[Location]]," ( ",Table3[[#This Row],[Season Code]]," )") -> Andorra-Andorra ( 01/01-12/31 ) | B118: Andorra | C118: Andorra | D118: =CONCATENATE(Table3[[#This Row],[Season Begin]],"-",Table3[[#This Row],[Season End]]) -> 01/01-12/31 | E118: 01/01 | F118: 12/31 | G118: 209 | H118: 123 | I118: 332 | J118: 01/01/2008 | L118: 11116
A119: =CONCATENATE(Table3[[#This Row],[State/Country]],"-",Table3[[#This Row],[Location]]," ( ",Table3[[#This Row],[Season Code]]," )") -> Angola-Luanda ( 01/01-12/31 ) | B119: Angola | C119: Luanda | D119: =CONCATENATE(Table3[[#This Row],[Season Begin]],"-",Table3[[#This Row],[Season End]]) -> 01/01-12/31 | E119: 01/01 | F119: 12/31 | G119: 405 | H119: 170 | I119: 575 | J119: 08/01/2013 | L119: 10432
A120: =CONCATENATE(Table3[[#This Row],[State/Country]],"-",Table3[[#This Row],[Location]]," ( ",Table3[[#This Row],[Season Code]]," )") -> Angola-[Other] ( 01/01-12/31 ) | B120: Angola | C120: [Other] | D120: =CONCATENATE(Table3[[#This Row],[Season Begin]],"-",Table3[[#This Row],[Season End]]) -> 01/01-12/31 | E120: 01/01 | F120: 12/31 | G120: 405 | H120: 170 | I120: 575 | J120: 08/01/2013 | L120: 11789
A121: =CONCATENATE(Table3[[#This Row],[State/Country]],"-",Table3[[#This Row],[Location]]," ( ",Table3[[#This Row],[Season Code]]," )") -> Anguilla-Anguilla ( 05/01-11/30 ) | B121: Anguilla | C121: Anguilla | D121: =CONCATENATE(Table3[[#This Row],[Season Begin]],"-",Table3[[#This Row],[Season End]]) -> 05/01-11/30 | E121: 05/01 | F121: 11/30 | G121: 121 | H121: 100 | I121: 221 | J121: 08/01/2010 | L121: 13519
A122: =CONCATENATE(Table3[[#This Row],[State/Country]],"-",Table3[[#This Row],[Location]]," ( ",Table3[[#This Row],[Season Code]]," )") -> Anguilla-Anguilla ( 12/01-04/30 ) | B122: Anguilla | C122: Anguilla | D122: =CONCATENATE(Table3[[#This Row],[Season Begin]],"-",Table3[[#This Row],[Season End]]) -> 12/01-04/30 | E122: 12/01 | F122: 04/30 | G122: 140 | H122: 102 | I122: 242 | J122: 08/01/2010 | L122: 10251
A123: =CONCATENATE(Table3[[#This Row],[State/Country]],"-",Table3[[#This Row],[Location]]," ( ",Table3[[#This Row],[Season Code]]," )") -> Antarctica-Antarctica Region Posts ( 01/01-12/31 ) | B123: Antarctica | C123: Antarctica Region Posts | D123: =CONCATENATE(Table3[[#This Row],[Season Begin]],"-",Table3[[#This Row],[Season End]]) -> 01/01-12/31 | E123: 01/01 | F123: 12/31 | G123: 0 | H123: 1 | I123: 1 | J123: 06/01/2010 | K123: 2 | L123: 11892
A124: =CONCATENATE(Table3[[#This Row],[State/Country]],"-",Table3[[#This Row],[Location]]," ( ",Table3[[#This Row],[Season Code]]," )") -> Antarctica-Mcmurdo Station Antarctica ( 01/01-12/31 ) | B124: Antarctica | C124: Mcmurdo Station Antarctica | D124: =CONCATENATE(Table3[[#This Row],[Season Begin]],"-",Table3[[#This Row],[Season End]]) -> 01/01-12/31 | E124: 01/01 | F124: 12/31 | G124: 0 | H124: 1 | I124: 1 | J124: 05/01/2010 | K124: 2 | L124: 10378
A125: =CONCATENATE(Table3[[#This Row],[State/Country]],"-",Table3[[#This Row],[Location]]," ( ",Table3[[#This Row],[Season Code]]," )") -> Antigua And Barbuda-All Contractor Facilities ( 01/01-12/31 ) | B125: Antigua And Barbuda | C125: All Contractor Facilities | D125: =CONCATENATE(Table3[[#This Row],[Season Begin]],"-",Table3[[#This Row],[Season End]]) -> 01/01-12/31 | E125: 01/01 | F125: 12/31 | G125: 20 | H125: 22 | I125: 42 | J125: 10/01/2002 | L125: 11826
A126: =CONCATENATE(Table3[[#This Row],[State/Country]],"-",Table3[[#This Row],[Location]]," ( ",Table3[[#This Row],[Season Code]]," )") -> Antigua And Barbuda-Antigua And Barbuda ( 04/16-12/14 ) | B126: Antigua And Barbuda | C126: Antigua And Barbuda | D126: =CONCATENATE(Table3[[#This Row],[Season Begin]],"-",Table3[[#This Row],[Season End]]) -> 04/16-12/14 | E126: 04/16 | F126: 12/14 | G126: 174 | H126: 91 | I126: 265 | J126: 03/01/2009 | L126: 11680
A127: =CONCATENATE(Table3[[#This Row],[State/Country]],"-",Table3[[#This Row],[Location]]," ( ",Table3[[#This Row],[Season Code]]," )") -> Antigua And Barbuda-Antigua And Barbuda ( 12/15-04/15 ) | B127: Antigua And Barbuda | C127: Antigua And Barbuda | D127: =CONCATENATE(Table3[[#This Row],[Season Begin]],"-",Table3[[#This Row],[Season End]]) -> 12/15-04/15 | E127: 12/15 | F127: 04/15 | G127: 205 | H127: 94 | I127: 299 | J127: 03/01/2009 | L127: 12283
A128: =CONCATENATE(Table3[[#This Row],[State/Country]],"-",Table3[[#This Row],[Location]]," ( ",Table3[[#This Row],[Season Code]]," )") -> Antigua And Barbuda-Naval Support Facility ( 04/16-12/14 ) | B128: Antigua And Barbuda | C128: Naval Support Facility | D128: =CONCATENATE(Table3[[#This Row],[Season Begin]],"-",Table3[[#This Row],[Season End]]) -> 04/16-12/14 | E128: 04/16 | F128: 12/14 | G128: 174 | H128: 91 | I128: 265 | J128: 03/01/2009 | L128: 10381
A129: =CONCATENATE(Table3[[#This Row],[State/Country]],"-",Table3[[#This Row],[Location]]," ( ",Table3[[#This Row],[Season Code]]," )") -> Antigua And Barbuda-Naval Support Facility ( 12/15-04/15 ) | B129: Antigua And Barbuda | C129: Naval Support Facility | D129: =CONCATENATE(Table3[[#This Row],[Season Begin]],"-",Table3[[#This Row],[Season End]]) -> 12/15-04/15 | E129: 12/15 | F129: 04/15 | G129: 205 | H129: 94 | I129: 299 | J129: 03/01/2009 | L129: 11681
A130: =CONCATENATE(Table3[[#This Row],[State/Country]],"-",Table3[[#This Row],[Location]]," ( ",Table3[[#This Row],[Season Code]]," )") -> Antigua And Barbuda-[Other] ( 04/16-12/14 ) | B130: Antigua And Barbuda | C130: [Other] | D130: =CONCATENATE(Table3[[#This Row],[Season Begin]],"-",Table3[[#This Row],[Season End]]) -> 04/16-12/14 | E130: 04/16 | F130: 12/14 | G130: 37 | H130: 18 | I130: 55 | J130: 05/01/2008 | L130: 11682
A131: =CONCATENATE(Table3[[#This Row],[State/Country]],"-",Table3[[#This Row],[Location]]," ( ",Table3[[#This Row],[Season Code]]," )") -> Antigua And Barbuda-[Other] ( 12/15-04/15 ) | B131: Antigua And Barbuda | C131: [Other] | D131: =CONCATENATE(Table3[[#This Row],[Season Begin]],"-",Table3[[#This Row],[Season End]]) -> 12/15-04/15 | E131: 12/15 | F131: 04/15 | G131: 50 | H131: 19 | I131: =G131+H131 -> 69 | J131: 05/01/2008 | L131: 11683
A132: =CONCATENATE(Table3[[#This Row],[State/Country]],"-",Table3[[#This Row],[Location]]," ( ",Table3[[#This Row],[Season Code]]," )") -> Argentina-Bariloche ( 01/01-12/31 ) | B132: Argentina | C132: Bariloche | D132: =CONCATENATE(Table3[[#This Row],[Season Begin]],"-",Table3[[#This Row],[Season End]]) -> 01/01-12/31 | E132: 01/01 | F132: 12/31 | G132: 218 | H132: 112 | I132: 330 | J132: 03/01/2012 | L132: 11790
A133: =CONCATENATE(Table3[[#This Row],[State/Country]],"-",Table3[[#This Row],[Location]]," ( ",Table3[[#This Row],[Season Code]]," )") -> Argentina-Buenos Aires ( 01/01-12/31 ) | B133: Argentina | C133: Buenos Aires | D133: =CONCATENATE(Table3[[#This Row],[Season Begin]],"-",Table3[[#This Row],[Season End]]) -> 01/01-12/31 | E133: 01/01 | F133: 12/31 | G133: 221 | H133: 121 | I133: 342 | J133: 03/01/2012 | L133: 10253
A134: =CONCATENATE(Table3[[#This Row],[State/Country]],"-",Table3[[#This Row],[Location]]," ( ",Table3[[#This Row],[Season Code]]," )") -> Argentina-Mendoza ( 01/01-12/31 ) | B134: Argentina | C134: Mendoza | D134: =CONCATENATE(Table3[[#This Row],[Season Begin]],"-",Table3[[#This Row],[Season End]]) -> 01/01-12/31 | E134: 01/01 | F134: 12/31 | G134: 182 | H134: 105 | I134: 287 | J134: 05/01/2012 | L134: 11117
A135: =CONCATENATE(Table3[[#This Row],[State/Country]],"-",Table3[[#This Row],[Location]]," ( ",Table3[[#This Row],[Season Code]]," )") -> Argentina-[Other] ( 01/01-12/31 ) | B135: Argentina | C135: [Other] | D135: =CONCATENATE(Table3[[#This Row],[Season Begin]],"-",Table3[[#This Row],[Season End]]) -> 01/01-12/31 | E135: 01/01 | F135: 12/31 | G135: 175 | H135: 117 | I135: 292 | J135: 05/01/2012 | L135: 11117
A136: =CONCATENATE(Table3[[#This Row],[State/Country]],"-",Table3[[#This Row],[Location]]," ( ",Table3[[#This Row],[Season Code]]," )") -> Armenia-Yerevan ( 01/01-12/31 ) | B136: Armenia | C136: Yerevan | D136: =CONCATENATE(Table3[[#This Row],[Season Begin]],"-",Table3[[#This Row],[Season End]]) -> 01/01-12/31 | E136: 01/01 | F136: 12/31 | G136: 148 | H136: 92 | I136: 240 | J136: 05/01/2012 | L136: 13422
A137: =CONCATENATE(Table3[[#This Row],[State/Country]],"-",Table3[[#This Row],[Location]]," ( ",Table3[[#This Row],[Season Code]]," )") -> Armenia-[Other] ( 01/01-12/31 ) | B137: Armenia | C137: [Other] | D137: =CONCATENATE(Table3[[#This Row],[Season Begin]],"-",Table3[[#This Row],[Season End]]) -> 01/01-12/31 | E137: 01/01 | F137: 12/31 | G137: 148 | H137: 92 | I137: 240 | J137: 05/01/2012 | L137: 11825
A138: =CONCATENATE(Table3[[#This Row],[State/Country]],"-",Table3[[#This Row],[Location]]," ( ",Table3[[#This Row],[Season Code]]," )") -> Ascension Island-Ascension Island ( 01/01-12/31 ) | B138: Ascension Island | C138: Ascension Island | D138: =CONCATENATE(Table3[[#This Row],[Season Begin]],"-",Table3[[#This Row],[Season End]]) -> 01/01-12/31 | E138: 01/01 | F138: 12/31 | G138: 20 | H138: 22 | I138: 42 | J138: 10/01/2002 | L138: 10380
A139: =CONCATENATE(Table3[[#This Row],[State/Country]],"-",Table3[[#This Row],[Location]]," ( ",Table3[[#This Row],[Season Code]]," )") -> Australia-Adelaide ( 01/01-12/31 ) | B139: Australia | C139: Adelaide | D139: =CONCATENATE(Table3[[#This Row],[Season Begin]],"-",Table3[[#This Row],[Season End]]) -> 01/01-12/31 | E139: 01/01 | F139: 12/31 | G139: 229 | H139: 157 | I139: 386 | J139: 08/01/2013 | L139: 15055
A140: =CONCATENATE(Table3[[#This Row],[State/Country]],"-",Table3[[#This Row],[Location]]," ( ",Table3[[#This Row],[Season Code]]," )") -> Australia-Brisbane ( 01/01-12/31 ) | B140: Australia | C140: Brisbane | D140: =CONCATENATE(Table3[[#This Row],[Season Begin]],"-",Table3[[#This Row],[Season End]]) -> 01/01-12/31 | E140: 01/01 | F140: 12/31 | G140: 207 | H140: 128 | I140: 335 | J140: 08/01/2013 | L140: 10379
A141: =CONCATENATE(Table3[[#This Row],[State/Country]],"-",Table3[[#This Row],[Location]]," ( ",Table3[[#This Row],[Season Code]]," )") -> Australia-Broome ( 01/01-12/31 ) | B141: Australia | C141: Broome | D141: =CONCATENATE(Table3[[#This Row],[Season Begin]],"-",Table3[[#This Row],[Season End]]) -> 01/01-12/31 | E141: 01/01 | F141: 12/31 | G141: 292 | H141: 137 | I141: 429 | J141: 08/01/2013 | L141: 11763
A142: =CONCATENATE(Table3[[#This Row],[State/Country]],"-",Table3[[#This Row],[Location]]," ( ",Table3[[#This Row],[Season Code]]," )") -> Australia-Cairns ( 01/01-12/31 ) | B142: Australia | C142: Cairns | D142: =CONCATENATE(Table3[[#This Row],[Season Begin]],"-",Table3[[#This Row],[Season End]]) -> 01/01-12/31 | E142: 01/01 | F142: 12/31 | G142: 167 | H142: 131 | I142: 298 | J142: 08/01/2013 | L142: 11118
A143: =CONCATENATE(Table3[[#This Row],[State/Country]],"-",Table3[[#This Row],[Location]]," ( ",Table3[[#This Row],[Season Code]]," )") -> Australia-Canberra ( 01/01-12/31 ) | B143: Australia | C143: Canberra | D143: =CONCATENATE(Table3[[#This Row],[Season Begin]],"-",Table3[[#This Row],[Season End]]) -> 01/01-12/31 | E143: 01/01 | F143: 12/31 | G143: 209 | H143: 136 | I143: 345 | J143: 08/01/2013 | L143: 10118
A144: =CONCATENATE(Table3[[#This Row],[State/Country]],"-",Table3[[#This Row],[Location]]," ( ",Table3[[#This Row],[Season Code]]," )") -> Australia-Darwin, Northern Territory ( 04/01-09/30 ) | B144: Australia | C144: Darwin, Northern Territory | D144: =CONCATENATE(Table3[[#This Row],[Season Begin]],"-",Table3[[#This Row],[Season End]]) -> 04/01-09/30 | E144: 04/01 | F144: 09/30 | G144: 211 | H144: 142 | I144: 353 | J144: 08/01/2013 | L144: 10118
A145: =CONCATENATE(Table3[[#This Row],[State/Country]],"-",Table3[[#This Row],[Location]]," ( ",Table3[[#This Row],[Season Code]]," )") -> Australia-Darwin, Northern Territory ( 10/01-03/31 ) | B145: Australia | C145: Darwin, Northern Territory | D145: =CONCATENATE(Table3[[#This Row],[Season Begin]],"-",Table3[[#This Row],[Season End]]) -> 10/01-03/31 | E145: 10/01 | F145: 03/31 | G145: 129 | H145: 134 | I145: 263 | J145: 08/01/2013 | L145: 10827
A146: =CONCATENATE(Table3[[#This Row],[State/Country]],"-",Table3[[#This Row],[Location]]," ( ",Table3[[#This Row],[Season Code]]," )") -> Australia-Exmouth ( 01/01-12/31 ) | B146: Australia | C146: Exmouth | D146: =CONCATENATE(Table3[[#This Row],[Season Begin]],"-",Table3[[#This Row],[Season End]]) -> 01/01-12/31 | E146: 01/01 | F146: 12/31 | G146: 214 | H146: 147 | I146: 361 | J146: 01/01/2014 | L146: 10492
A147: =CONCATENATE(Table3[[#This Row],[State/Country]],"-",Table3[[#This Row],[Location]]," ( ",Table3[[#This Row],[Season Code]]," )") -> Australia-Fremantle ( 01/01-12/31 ) | B147: Australia | C147: Fremantle | D147: =CONCATENATE(Table3[[#This Row],[Season Begin]],"-",Table3[[#This Row],[Season End]]) -> 01/01-12/31 | E147: 01/01 | F147: 12/31 | G147: 234 | H147: 114 | I147: 348 | J147: 08/01/2013 | L147: 13823
A148: =CONCATENATE(Table3[[#This Row],[State/Country]],"-",Table3[[#This Row],[Location]]," ( ",Table3[[#This Row],[Season Code]]," )") -> Australia-Hobart ( 01/01-12/31 ) | B148: Australia | C148: Hobart | D148: =CONCATENATE(Table3[[#This Row],[Season Begin]],"-",Table3[[#This Row],[Season End]]) -> 01/01-12/31 | E148: 01/01 | F148: 12/31 | G148: 220 | H148: 144 | I148: 364 | J148: 08/01/2013 | L148: 12195
A149: =CONCATENATE(Table3[[#This Row],[State/Country]],"-",Table3[[#This Row],[Location]]," ( ",Table3[[#This Row],[Season Code]]," )") -> Australia-Melbourne ( 01/01-12/31 ) | B149: Australia | C149: Melbourne | D149: =CONCATENATE(Table3[[#This Row],[Season Begin]],"-",Table3[[#This Row],[Season End]]) -> 01/01-12/31 | E149: 01/01 | F149: 12/31 | G149: 239 | H149: 162 | I149: 401 | J149: 08/01/2013 | L149: 12294
A150: =CONCATENATE(Table3[[#This Row],[State/Country]],"-",Table3[[#This Row],[Location]]," ( ",Table3[[#This Row],[Season Code]]," )") -> Australia-Perth ( 01/01-12/31 ) | B150: Australia | C150: Perth | D150: =CONCATENATE(Table3[[#This Row],[Season Begin]],"-",Table3[[#This Row],[Season End]]) -> 01/01-12/31 | E150: 01/01 | F150: 12/31 | G150: 275 | H150: 153 | I150: 428 | J150: 08/01/2013 | L150: 10119
A151: =CONCATENATE(Table3[[#This Row],[State/Country]],"-",Table3[[#This Row],[Location]]," ( ",Table3[[#This Row],[Season Code]]," )") -> Australia-Richmond, Nsw ( 01/01-12/31 ) | B151: Australia | C151: Richmond, Nsw | D151: =CONCATENATE(Table3[[#This Row],[Season Begin]],"-",Table3[[#This Row],[Season End]]) -> 01/01-12/31 | E151: 01/01 | F151: 12/31 | G151: 188 | H151: 136 | I151: 324 | J151: 08/01/2013 | L151: 10829
A152: =CONCATENATE(Table3[[#This Row],[State/Country]],"-",Table3[[#This Row],[Location]]," ( ",Table3[[#This Row],[Season Code]]," )") -> Australia-Sydney ( 01/01-12/31 ) | B152: Australia | C152: Sydney | D152: =CONCATENATE(Table3[[#This Row],[Season Begin]],"-",Table3[[#This Row],[Season End]]) -> 01/01-12/31 | E152: 01/01 | F152: 12/31 | G152: 200 | H152: 143 | I152: 343 | J152: 08/01/2013 | L152: 11119
A153: =CONCATENATE(Table3[[#This Row],[State/Country]],"-",Table3[[#This Row],[Location]]," ( ",Table3[[#This Row],[Season Code]]," )") -> Australia-Woomera As ( 01/01-12/31 ) | B153: Australia | C153: Woomera As | D153: =CONCATENATE(Table3[[#This Row],[Season Begin]],"-",Table3[[#This Row],[Season End]]) -> 01/01-12/31 | E153: 01/01 | F153: 12/31 | G153: 167 | H153: 131 | I153: 298 | J153: 08/01/2013 | L153: 12194
A154: =CONCATENATE(Table3[[#This Row],[State/Country]],"-",Table3[[#This Row],[Location]]," ( ",Table3[[#This Row],[Season Code]]," )") -> Australia-[Other] ( 01/01-12/31 ) | B154: Australia | C154: [Other] | D154: =CONCATENATE(Table3[[#This Row],[Season Begin]],"-",Table3[[#This Row],[Season End]]) -> 01/01-12/31 | E154: 01/01 | F154: 12/31 | G154: 167 | H154: 131 | I154: 298 | J154: 08/01/2013 | K154: 4 | L154: 10120
A155: =CONCATENATE(Table3[[#This Row],[State/Country]],"-",Table3[[#This Row],[Location]]," ( ",Table3[[#This Row],[Season Code]]," )") -> Austria-Graz ( 01/01-12/31 ) | B155: Austria | C155: Graz | D155: =CONCATENATE(Table3[[#This Row],[Season Begin]],"-",Table3[[#This Row],[Season End]]) -> 01/01-12/31 | E155: 01/01 | F155: 12/31 | G155: 250 | H155: 171 | I155: 421 | J155: 11/01/2013 | L155: 13883
A156: =CONCATENATE(Table3[[#This Row],[State/Country]],"-",Table3[[#This Row],[Location]]," ( ",Table3[[#This Row],[Season Code]]," )") -> Austria-Innsbruck ( 01/01-12/31 ) | B156: Austria | C156: Innsbruck | D156: =CONCATENATE(Table3[[#This Row],[Season Begin]],"-",Table3[[#This Row],[Season End]]) -> 01/01-12/31 | E156: 01/01 | F156: 12/31 | G156: 264 | H156: 148 | I156: 412 | J156: 11/01/2013 | L156: 11711
A157: =CONCATENATE(Table3[[#This Row],[State/Country]],"-",Table3[[#This Row],[Location]]," ( ",Table3[[#This Row],[Season Code]]," )") -> Austria-Linz ( 01/01-12/31 ) | B157: Austria | C157: Linz | D157: =CONCATENATE(Table3[[#This Row],[Season Begin]],"-",Table3[[#This Row],[Season End]]) -> 01/01-12/31 | E157: 01/01 | F157: 12/31 | G157: 222 | H157: 176 | I157: 398 | J157: 11/01/2013 | L157: 10117
A158: =CONCATENATE(Table3[[#This Row],[State/Country]],"-",Table3[[#This Row],[Location]]," ( ",Table3[[#This Row],[Season Code]]," )") -> Austria-Salzburg ( 01/01-12/31 ) | B158: Austria | C158: Salzburg | D158: =CONCATENATE(Table3[[#This Row],[Season Begin]],"-",Table3[[#This Row],[Season End]]) -> 01/01-12/31 | E158: 01/01 | F158: 12/31 | G158: 257 | H158: 177 | I158: 434 | J158: 11/01/2013 | L158: 11121
A159: =CONCATENATE(Table3[[#This Row],[State/Country]],"-",Table3[[#This Row],[Location]]," ( ",Table3[[#This Row],[Season Code]]," )") -> Austria-Vienna ( 01/01-12/31 ) | B159: Austria | C159: Vienna | D159: =CONCATENATE(Table3[[#This Row],[Season Begin]],"-",Table3[[#This Row],[Season End]]) -> 01/01-12/31 | E159: 01/01 | F159: 12/31 | G159: 229 | H159: 188 | I159: 417 | J159: 11/01/2013 | L159: 11121
A160: =CONCATENATE(Table3[[#This Row],[State/Country]],"-",Table3[[#This Row],[Location]]," ( ",Table3[[#This Row],[Season Code]]," )") -> Austria-[Other] ( 01/01-12/31 ) | B160: Austria | C160: [Other] | D160: =CONCATENATE(Table3[[#This Row],[Season Begin]],"-",Table3[[#This Row],[Season End]]) -> 01/01-12/31 | E160: 01/01 | F160: 12/31 | G160: 264 | H160: 148 | I160: 412 | J160: 11/01/2013 | L160: 10121
A161: =CONCATENATE(Table3[[#This Row],[State/Country]],"-",Table3[[#This Row],[Location]]," ( ",Table3[[#This Row],[Season Code]]," )") -> Azerbaijan-Baku ( 01/01-12/31 ) | B161: Azerbaijan | C161: Baku | D161: =CONCATENATE(Table3[[#This Row],[Season Begin]],"-",Table3[[#This Row],[Season End]]) -> 01/01-12/31 | E161: 01/01 | F161: 12/31 | G161: 259 | H161: 114 | I161: 373 | J161: 04/01/2009 | L161: 10121
A162: =CONCATENATE(Table3[[#This Row],[State/Country]],"-",Table3[[#This Row],[Location]]," ( ",Table3[[#This Row],[Season Code]]," )") -> Azerbaijan-Ganja ( 01/01-12/31 ) | B162: Azerbaijan | C162: Ganja | D162: =CONCATENATE(Table3[[#This Row],[Season Begin]],"-",Table3[[#This Row],[Season End]]) -> 01/01-12/31 | E162: 01/01 | F162: 12/31 | G162: 122 | H162: 72 | I162: 194 | J162: 10/01/2010 | L162: 13822
A163: =CONCATENATE(Table3[[#This Row],[State/Country]],"-",Table3[[#This Row],[Location]]," ( ",Table3[[#This Row],[Season Code]]," )") -> Azerbaijan-[Other] ( 01/01-12/31 ) | B163: Azerbaijan | C163: [Other] | D163: =CONCATENATE(Table3[[#This Row],[Season Begin]],"-",Table3[[#This Row],[Season End]]) -> 01/01-12/31 | E163: 01/01 | F163: 12/31 | G163: 98 | H163: 65 | I163: 163 | J163: 10/01/2010 | L163: 11122
A164: =CONCATENATE(Table3[[#This Row],[State/Country]],"-",Table3[[#This Row],[Location]]," ( ",Table3[[#This Row],[Season Code]]," )") -> Bahamas-All Other Opbat Sites ( 01/01-12/31 ) | B164: Bahamas | C164: All Other Opbat Sites | D164: =CONCATENATE(Table3[[#This Row],[Season Begin]],"-",Table3[[#This Row],[Season End]]) -> 01/01-12/31 | E164: 01/01 | F164: 12/31 | G164: 0 | H164: 49.5 | I164: 49.5 | J164: 05/01/2011 | L164: 11122
A165: =CONCATENATE(Table3[[#This Row],[State/Country]],"-",Table3[[#This Row],[Location]]," ( ",Table3[[#This Row],[Season Code]]," )") -> Bahamas-Andros Island (Autec Site) ( 01/01-12/31 ) | B165: Bahamas | C165: Andros Island (Autec Site) | D165: =CONCATENATE(Table3[[#This Row],[Season Begin]],"-",Table3[[#This Row],[Season End]]) -> 01/01-12/31 | E165: 01/01 | F165: 12/31 | G165: 30 | H165: 18 | I165: 48 | J165: 05/01/2011 | L165: 12734
A166: =CONCATENATE(Table3[[#This Row],[State/Country]],"-",Table3[[#This Row],[Location]]," ( ",Table3[[#This Row],[Season Code]]," )") -> Bahamas-Andros Island (Opbat Site) ( 01/01-12/31 ) | B166: Bahamas | C166: Andros Island (Opbat Site) | D166: =CONCATENATE(Table3[[#This Row],[Season Begin]],"-",Table3[[#This Row],[Season End]]) -> 01/01-12/31 | E166: 01/01 | F166: 12/31 | G166: 0 | H166: 49.5 | I166: 49.5 | J166: 05/01/2011 | L166: 11124
A167: =CONCATENATE(Table3[[#This Row],[State/Country]],"-",Table3[[#This Row],[Location]]," ( ",Table3[[#This Row],[Season Code]]," )") -> Bahamas-Andros Island ( 01/01-12/31 ) | B167: Bahamas | C167: Andros Island | D167: =CONCATENATE(Table3[[#This Row],[Season Begin]],"-",Table3[[#This Row],[Season End]]) -> 01/01-12/31 | E167: 01/01 | F167: 12/31 | G167: 149 | H167: 87 | I167: 236 | J167: 09/01/2012 | L167: 11124
A168: =CONCATENATE(Table3[[#This Row],[State/Country]],"-",Table3[[#This Row],[Location]]," ( ",Table3[[#This Row],[Season Code]]," )") -> Bahamas-Eleuthera Island ( 01/01-12/31 ) | B168: Bahamas | C168: Eleuthera Island | D168: =CONCATENATE(Table3[[#This Row],[Season Begin]],"-",Table3[[#This Row],[Season End]]) -> 01/01-12/31 | E168: 01/01 | F168: 12/31 | G168: 146 | H168: 109 | I168: 255 | J168: 09/01/2012 | L168: 11123
A169: =CONCATENATE(Table3[[#This Row],[State/Country]],"-",Table3[[#This Row],[Location]]," ( ",Table3[[#This Row],[Season Code]]," )") -> Bahamas-Grand Bahama Island ( 01/01-12/31 ) | B169: Bahamas | C169: Grand Bahama Island | D169: =CONCATENATE(Table3[[#This Row],[Season Begin]],"-",Table3[[#This Row],[Season End]]) -> 01/01-12/31 | E169: 01/01 | F169: 12/31 | G169: 176 | H169: 109 | I169: 285 | J169: 08/01/2012 | K169: 5 | L169: 10122
A170: =CONCATENATE(Table3[[#This Row],[State/Country]],"-",Table3[[#This Row],[Location]]," ( ",Table3[[#This Row],[Season Code]]," )") -> Bahamas-Great Exuma Isl - Opbat Site ( 01/01-12/31 ) | B170: Bahamas | C170: Great Exuma Isl - Opbat Site | D170: =CONCATENATE(Table3[[#This Row],[Season Begin]],"-",Table3[[#This Row],[Season End]]) -> 01/01-12/31 | E170: 01/01 | F170: 12/31 | G170: 0 | H170: 49.5 | I170: 49.5 | J170: 05/01/2011 | L170: 10123
A171: =CONCATENATE(Table3[[#This Row],[State/Country]],"-",Table3[[#This Row],[Location]]," ( ",Table3[[#This Row],[Season Code]]," )") -> Bahamas-Great Inagua Isl - Opbat Site ( 01/01-12/31 ) | B171: Bahamas | C171: Great Inagua Isl - Opbat Site | D171: =CONCATENATE(Table3[[#This Row],[Season Begin]],"-",Table3[[#This Row],[Season End]]) -> 01/01-12/31 | E171: 01/01 | F171: 12/31 | G171: 0 | H171: 49.5 | I171: 49.5 | J171: 05/01/2011 | L171: 10123
A172: =CONCATENATE(Table3[[#This Row],[State/Country]],"-",Table3[[#This Row],[Location]]," ( ",Table3[[#This Row],[Season Code]]," )") -> Bahamas-Nassau ( 06/17-11/16 ) | B172: Bahamas | C172: Nassau | D172: =CONCATENATE(Table3[[#This Row],[Season Begin]],"-",Table3[[#This Row],[Season End]]) -> 06/17-11/16 | E172: 06/17 | F172: 11/16 | G172: 268 | H172: 152 | I172: 420 | J172: 02/01/2006 | L172: 10832
A173: =CONCATENATE(Table3[[#This Row],[State/Country]],"-",Table3[[#This Row],[Location]]," ( ",Table3[[#This Row],[Season Code]]," )") -> Bahamas-Nassau ( 11/17-06/16 ) | B173: Bahamas | C173: Nassau | D173: =CONCATENATE(Table3[[#This Row],[Season Begin]],"-",Table3[[#This Row],[Season End]]) -> 11/17-06/16 | E173: 11/17 | F173: 06/16 | G173: 300 | H173: 155 | I173: 455 | J173: 02/01/2006 | L173: 10832
A174: =CONCATENATE(Table3[[#This Row],[State/Country]],"-",Table3[[#This Row],[Location]]," ( ",Table3[[#This Row],[Season Code]]," )") -> Bahamas-[Other] ( 01/01-12/31 ) | B174: Bahamas | C174: [Other] | D174: =CONCATENATE(Table3[[#This Row],[Season Begin]],"-",Table3[[#This Row],[Season End]]) -> 01/01-12/31 | E174: 01/01 | F174: 12/31 | G174: 149 | H174: 87 | I174: 236 | J174: 09/01/2012 | L174: 10124
A175: =CONCATENATE(Table3[[#This Row],[State/Country]],"-",Table3[[#This Row],[Location]]," ( ",Table3[[#This Row],[Season Code]]," )") -> Bahrain-Bahrain ( 01/01-12/31 ) | B175: Bahrain | C175: Bahrain | D175: =CONCATENATE(Table3[[#This Row],[Season Begin]],"-",Table3[[#This Row],[Season End]]) -> 01/01-12/31 | E175: 01/01 | F175: 12/31 | G175: 272 | H175: 124 | I175: 396 | J175: 12/01/2008 | L175: 19016
A176: =CONCATENATE(Table3[[#This Row],[State/Country]],"-",Table3[[#This Row],[Location]]," ( ",Table3[[#This Row],[Season Code]]," )") -> Bahrain-Shaikh Isa Air Base ( 01/01-12/31 ) | B176: Bahrain | C176: Shaikh Isa Air Base | D176: =CONCATENATE(Table3[[#This Row],[Season Begin]],"-",Table3[[#This Row],[Season End]]) -> 01/01-12/31 | E176: 01/01 | F176: 12/31 | G176: 272 | H176: 124 | I176: 396 | J176: 12/01/2008 | L176: 19016
A177: =CONCATENATE(Table3[[#This Row],[State/Country]],"-",Table3[[#This Row],[Location]]," ( ",Table3[[#This Row],[Season Code]]," )") -> Bahrain-Southwest Asia Admin Spt Unit ( 01/01-12/31 ) | B177: Bahrain | C177: Southwest Asia Admin Spt Unit | D177: =CONCATENATE(Table3[[#This Row],[Season Begin]],"-",Table3[[#This Row],[Season End]]) -> 01/01-12/31 | E177: 01/01 | F177: 12/31 | G177: 272 | H177: 124 | I177: 396 | J177: 12/01/2008 | K177: 2 | L177: 11827
A178: =CONCATENATE(Table3[[#This Row],[State/Country]],"-",Table3[[#This Row],[Location]]," ( ",Table3[[#This Row],[Season Code]]," )") -> Bangladesh-Chittagong ( 01/01-12/31 ) | B178: Bangladesh | C178: Chittagong | D178: =CONCATENATE(Table3[[#This Row],[Season Begin]],"-",Table3[[#This Row],[Season End]]) -> 01/01-12/31 | E178: 01/01 | F178: 12/31 | G178: 100 | H178: 71 | I178: 171 | J178: 07/01/2013 | K178: 2 | L178: 10382
A179: =CONCATENATE(Table3[[#This Row],[State/Country]],"-",Table3[[#This Row],[Location]]," ( ",Table3[[#This Row],[Season Code]]," )") -> Bangladesh-Dhaka ( 01/01-12/31 ) | B179: Bangladesh | C179: Dhaka | D179: =CONCATENATE(Table3[[#This Row],[Season Begin]],"-",Table3[[#This Row],[Season End]]) -> 01/01-12/31 | E179: 01/01 | F179: 12/31 | G179: 200 | H179: 90 | I179: 290 | J179: 01/01/2013 | K179: 2 | L179: 11828
A180: =CONCATENATE(Table3[[#This Row],[State/Country]],"-",Table3[[#This Row],[Location]]," ( ",Table3[[#This Row],[Season Code]]," )") -> Bangladesh-Sylhet ( 01/01-12/31 ) | B180: Bangladesh | C180: Sylhet | D180: =CONCATENATE(Table3[[#This Row],[Season Begin]],"-",Table3[[#This Row],[Season End]]) -> 01/01-12/31 | E180: 01/01 | F180: 12/31 | G180: 105 | H180: 69 | I180: 174 | J180: 06/01/2013 | K180: 2 | L180: 10383
A181: =CONCATENATE(Table3[[#This Row],[State/Country]],"-",Table3[[#This Row],[Location]]," ( ",Table3[[#This Row],[Season Code]]," )") -> Bangladesh-[Other] ( 01/01-12/31 ) | B181: Bangladesh | C181: [Other] | D181: =CONCATENATE(Table3[[#This Row],[Season Begin]],"-",Table3[[#This Row],[Season End]]) -> 01/01-12/31 | E181: 01/01 | F181: 12/31 | G181: 73 | H181: 71 | I181: 144 | J181: 06/01/2013 | L181: 11057
A182: =CONCATENATE(Table3[[#This Row],[State/Country]],"-",Table3[[#This Row],[Location]]," ( ",Table3[[#This Row],[Season Code]]," )") -> Barbados-Barbados ( 04/16-12/14 ) | B182: Barbados | C182: Barbados | D182: =CONCATENATE(Table3[[#This Row],[Season Begin]],"-",Table3[[#This Row],[Season End]]) -> 04/16-12/14 | E182: 04/16 | F182: 12/14 | G182: 178 | H182: 122 | I182: 300 | J182: 11/01/2008 | L182: 11893
A183: =CONCATENATE(Table3[[#This Row],[State/Country]],"-",Table3[[#This Row],[Location]]," ( ",Table3[[#This Row],[Season Code]]," )") -> Barbados-Barbados ( 12/15-04/15 ) | B183: Barbados | C183: Barbados | D183: =CONCATENATE(Table3[[#This Row],[Season Begin]],"-",Table3[[#This Row],[Season End]]) -> 12/15-04/15 | E183: 12/15 | F183: 04/15 | G183: 287 | H183: 133 | I183: 420 | J183: 11/01/2008 | L183: 10035
A184: =CONCATENATE(Table3[[#This Row],[State/Country]],"-",Table3[[#This Row],[Location]]," ( ",Table3[[#This Row],[Season Code]]," )") -> Belarus-Minsk ( 01/01-12/31 ) | B184: Belarus | C184: Minsk | D184: =CONCATENATE(Table3[[#This Row],[Season Begin]],"-",Table3[[#This Row],[Season End]]) -> 01/01-12/31 | E184: 01/01 | F184: 12/31 | G184: 216 | H184: 91 | I184: 307 | J184: 11/01/2013 | L184: 11791
A185: =CONCATENATE(Table3[[#This Row],[State/Country]],"-",Table3[[#This Row],[Location]]," ( ",Table3[[#This Row],[Season Code]]," )") -> Belarus-[Other] ( 01/01-12/31 ) | B185: Belarus | C185: [Other] | D185: =CONCATENATE(Table3[[#This Row],[Season Begin]],"-",Table3[[#This Row],[Season End]]) -> 01/01-12/31 | E185: 01/01 | F185: 12/31 | G185: 216 | H185: 91 | I185: 307 | J185: 11/01/2013 | K185: 38 | L185: 10254
A186: =CONCATENATE(Table3[[#This Row],[State/Country]],"-",Table3[[#This Row],[Location]]," ( ",Table3[[#This Row],[Season Code]]," )") -> Belgium-Antwerp ( 01/01-12/31 ) | B186: Belgium | C186: Antwerp | D186: =CONCATENATE(Table3[[#This Row],[Season Begin]],"-",Table3[[#This Row],[Season End]]) -> 01/01-12/31 | E186: 01/01 | F186: 12/31 | G186: 230 | H186: 126 | I186: 356 | J186: 02/01/2014 | L186: 13481
A187: =CONCATENATE(Table3[[#This Row],[State/Country]],"-",Table3[[#This Row],[Location]]," ( ",Table3[[#This Row],[Season Code]]," )") -> Belgium-Brugge ( 01/01-12/31 ) | B187: Belgium | C187: Brugge | D187: =CONCATENATE(Table3[[#This Row],[Season Begin]],"-",Table3[[#This Row],[Season End]]) -> 01/01-12/31 | E187: 01/01 | F187: 12/31 | G187: 155 | H187: 110 | I187: 265 | J187: 02/01/2014 | L187: 10258
A188: =CONCATENATE(Table3[[#This Row],[State/Country]],"-",Table3[[#This Row],[Location]]," ( ",Table3[[#This Row],[Season Code]]," )") -> Belgium-Brussels ( 01/01-12/31 ) | B188: Belgium | C188: Brussels | D188: =CONCATENATE(Table3[[#This Row],[Season Begin]],"-",Table3[[#This Row],[Season End]]) -> 01/01-12/31 | E188: 01/01 | F188: 12/31 | G188: 210 | H188: 165 | I188: 375 | J188: 02/01/2014 | L188: 11127
A189: =CONCATENATE(Table3[[#This Row],[State/Country]],"-",Table3[[#This Row],[Location]]," ( ",Table3[[#This Row],[Season Code]]," )") -> Belgium-Diegem ( 01/01-12/31 ) | B189: Belgium | C189: Diegem | D189: =CONCATENATE(Table3[[#This Row],[Season Begin]],"-",Table3[[#This Row],[Season End]]) -> 01/01-12/31 | E189: 01/01 | F189: 12/31 | G189: 210 | H189: 165 | I189: 375 | J189: 02/01/2014 | L189: 11128
A190: =CONCATENATE(Table3[[#This Row],[State/Country]],"-",Table3[[#This Row],[Location]]," ( ",Table3[[#This Row],[Season Code]]," )") -> Belgium-Kleine Brogel ( 01/01-12/31 ) | B190: Belgium | C190: Kleine Brogel | D190: =CONCATENATE(Table3[[#This Row],[Season Begin]],"-",Table3[[#This Row],[Season End]]) -> 01/01-12/31 | E190: 01/01 | F190: 12/31 | G190: 138 | H190: 96 | I190: 234 | J190: 02/01/2014 | L190: 12239
A191: =CONCATENATE(Table3[[#This Row],[State/Country]],"-",Table3[[#This Row],[Location]]," ( ",Table3[[#This Row],[Season Code]]," )") -> Belgium-Liege ( 01/01-12/31 ) | B191: Belgium | C191: Liege | D191: =CONCATENATE(Table3[[#This Row],[Season Begin]],"-",Table3[[#This Row],[Season End]]) -> 01/01-12/31 | E191: 01/01 | F191: 12/31 | G191: 169 | H191: 91 | I191: 260 | J191: 02/01/2014 | L191: 10255
A192: =CONCATENATE(Table3[[#This Row],[State/Country]],"-",Table3[[#This Row],[Location]]," ( ",Table3[[#This Row],[Season Code]]," )") -> Belgium-Shape/Chievres ( 01/01-12/31 ) | B192: Belgium | C192: Shape/Chievres | D192: =CONCATENATE(Table3[[#This Row],[Season Begin]],"-",Table3[[#This Row],[Season End]]) -> 01/01-12/31 | E192: 01/01 | F192: 12/31 | G192: 134 | H192: 98 | I192: 232 | J192: 02/01/2014 | L192: 12911
A193: =CONCATENATE(Table3[[#This Row],[State/Country]],"-",Table3[[#This Row],[Location]]," ( ",Table3[[#This Row],[Season Code]]," )") -> Belgium-Zaventem ( 01/01-12/31 ) | B193: Belgium | C193: Zaventem | D193: =CONCATENATE(Table3[[#This Row],[Season Begin]],"-",Table3[[#This Row],[Season End]]) -> 01/01-12/31 | E193: 01/01 | F193: 12/31 | G193: 210 | H193: 165 | I193: 375 | J193: 02/01/2014 | L193: 12242
A194: =CONCATENATE(Table3[[#This Row],[State/Country]],"-",Table3[[#This Row],[Location]]," ( ",Table3[[#This Row],[Season Code]]," )") -> Belgium-[Other] ( 01/01-12/31 ) | B194: Belgium | C194: [Other] | D194: =CONCATENATE(Table3[[#This Row],[Season Begin]],"-",Table3[[#This Row],[Season End]]) -> 01/01-12/31 | E194: 01/01 | F194: 12/31 | G194: 98 | H194: 86 | I194: 184 | J194: 02/01/2014 | L194: 11129
A195: =CONCATENATE(Table3[[#This Row],[State/Country]],"-",Table3[[#This Row],[Location]]," ( ",Table3[[#This Row],[Season Code]]," )") -> Belize-Belize City ( 01/01-12/31 ) | B195: Belize | C195: Belize City | D195: =CONCATENATE(Table3[[#This Row],[Season Begin]],"-",Table3[[#This Row],[Season End]]) -> 01/01-12/31 | E195: 01/01 | F195: 12/31 | G195: 127 | H195: 82 | I195: =G195+H195 -> 209 | J195: 12/01/2011 | L195: 12514
A196: =CONCATENATE(Table3[[#This Row],[State/Country]],"-",Table3[[#This Row],[Location]]," ( ",Table3[[#This Row],[Season Code]]," )") -> Belize-Belmopan ( 01/01-12/31 ) | B196: Belize | C196: Belmopan | D196: =CONCATENATE(Table3[[#This Row],[Season Begin]],"-",Table3[[#This Row],[Season End]]) -> 01/01-12/31 | E196: 01/01 | F196: 12/31 | G196: 137 | H196: 97 | I196: 234 | J196: 05/01/2009 | L196: 15031
A197: =CONCATENATE(Table3[[#This Row],[State/Country]],"-",Table3[[#This Row],[Location]]," ( ",Table3[[#This Row],[Season Code]]," )") -> Belize-San Pedro ( 01/01-12/31 ) | B197: Belize | C197: San Pedro | D197: =CONCATENATE(Table3[[#This Row],[Season Begin]],"-",Table3[[#This Row],[Season End]]) -> 01/01-12/31 | E197: 01/01 | F197: 12/31 | G197: 146 | H197: 98 | I197: 244 | J197: 06/01/2009 | L197: 11998
A198: =CONCATENATE(Table3[[#This Row],[State/Country]],"-",Table3[[#This Row],[Location]]," ( ",Table3[[#This Row],[Season Code]]," )") -> Belize-[Other] ( 01/01-12/31 ) | B198: Belize | C198: [Other] | D198: =CONCATENATE(Table3[[#This Row],[Season Begin]],"-",Table3[[#This Row],[Season End]]) -> 01/01-12/31 | E198: 01/01 | F198: 12/31 | G198: 127 | H198: 82 | I198: 209 | J198: 12/01/2011 | L198: 13361
A199: =CONCATENATE(Table3[[#This Row],[State/Country]],"-",Table3[[#This Row],[Location]]," ( ",Table3[[#This Row],[Season Code]]," )") -> Benin-Cotonou ( 01/01-12/31 ) | B199: Benin | C199: Cotonou | D199: =CONCATENATE(Table3[[#This Row],[Season Begin]],"-",Table3[[#This Row],[Season End]]) -> 01/01-12/31 | E199: 01/01 | F199: 12/31 | G199: 159 | H199: 101 | I199: 260 | J199: 11/01/2013 | L199: 11130
A200: =CONCATENATE(Table3[[#This Row],[State/Country]],"-",Table3[[#This Row],[Location]]," ( ",Table3[[#This Row],[Season Code]]," )") -> Benin-[Other] ( 01/01-12/31 ) | B200: Benin | C200: [Other] | D200: =CONCATENATE(Table3[[#This Row],[Season Begin]],"-",Table3[[#This Row],[Season End]]) -> 01/01-12/31 | E200: 01/01 | F200: 12/31 | G200: 80 | H200: 67 | I200: 147 | J200: 05/01/2008 | L200: 12241
... 1371 more rows
